Publisher Label,Publisher URI,"Supplier ID","Supplier","Invoice No.","Amount (£)","Purpose","Transaction Number","Payment Date","Organisational Unit","Cost Centre(T)","Internal Category Number"
"Wolverhampton City Council","http://opendatacommunities.org/id/metropolitan-district-council/wolverhampton","710928","Yoo Recruit LTD","CWC10151393","-1,235.17","Agency Staff","190438632","21/03/2018","Child Protection","MASH","R1100"
"Wolverhampton City Council","http://opendatacommunities.org/id/metropolitan-district-council/wolverhampton","710928","Yoo Recruit LTD","CWC101514","184.87","Agency Staff","190438243","21/03/2018","Looked After Children","Adoption and Residence Team & Allowances","R1100"
"Wolverhampton City Council","http://opendatacommunities.org/id/metropolitan-district-council/wolverhampton","710928","Yoo Recruit LTD","CWC10151464","43.59","Agency Staff","190438703","21/03/2018","Early Intervention","EIP Locality 3 - Graiseley","R1100"
"Wolverhampton City Council","http://opendatacommunities.org/id/metropolitan-district-council/wolverhampton","710928","Yoo Recruit LTD","CWC10151439","36.33","Agency Staff","190438678","21/03/2018","Early Intervention","EIP Locality 1 - Eastfields","R1100"
"Wolverhampton City Council","http://opendatacommunities.org/id/metropolitan-district-council/wolverhampton","710928","Yoo Recruit LTD","CWC10151468","43.59","Agency Staff","190438707","21/03/2018","Early Intervention","EIP Locality 3 - Graiseley","R1100"
"Wolverhampton City Council","http://opendatacommunities.org/id/metropolitan-district-council/wolverhampton","710928","Yoo Recruit LTD","CWC10151415","-30.30","Agency Staff","190438654","21/03/2018","Early Intervention","EIP Locality 1 - Eastfields","R1100"
"Wolverhampton City Council","http://opendatacommunities.org/id/metropolitan-district-council/wolverhampton","710928","Yoo Recruit LTD","CWC10155279","363.60","Agency Staff","190439117","21/03/2018","Adult Education","Creative Studies Delivery Area","R1100"
"Wolverhampton City Council","http://opendatacommunities.org/id/metropolitan-district-council/wolverhampton","710928","Yoo Recruit LTD","CWC10155282","360.30","Agency Staff","190439120","21/03/2018","Adult Education","Foundation Studies Delivery Area","R1100"
"Wolverhampton City Council","http://opendatacommunities.org/id/metropolitan-district-council/wolverhampton","710928","Yoo Recruit LTD","CWC10155106","219.07","Agency Staff","190438944","21/03/2018","Leisure Services","Aldersley Leisure Village","R1100"
"Wolverhampton City Council","http://opendatacommunities.org/id/metropolitan-district-council/wolverhampton","710928","Yoo Recruit LTD","CWC10155283","318.84","Agency Staff","190439121","21/03/2018","Adult Education","Language Studies Delivery Area","R1100"
"Wolverhampton City Council","http://opendatacommunities.org/id/metropolitan-district-council/wolverhampton","710928","Yoo Recruit LTD","CWC1015574","945.00","Agency Staff","190438912","21/03/2018","Independent Living Service","Independent Living Service","R1100"
"Wolverhampton City Council","http://opendatacommunities.org/id/metropolitan-district-council/wolverhampton","710928","Yoo Recruit LTD","CWC10155235","200.75","Agency Staff","190439073","21/03/2018","Fleet Services","Passenger Transport - General","R1100"
"Wolverhampton City Council","http://opendatacommunities.org/id/metropolitan-district-council/wolverhampton","710928","Yoo Recruit LTD","CWC10155263","135.72","Agency Staff","190439101","21/03/2018","Visitor Economy","Bantock - Tea Rooms","R1100"
"Wolverhampton City Council","http://opendatacommunities.org/id/metropolitan-district-council/wolverhampton","710928","Yoo Recruit LTD","CWC10155311","119.60","Agency Staff","190439149","21/03/2018","School Planning & Resources","Special - Transport","R1100"
"Wolverhampton City Council","http://opendatacommunities.org/id/metropolitan-district-council/wolverhampton","710928","Yoo Recruit LTD","CWC10155292","74.72","Agency Staff","190439130","21/03/2018","Standards and Vulnerable Pupils","Music Support Team","R1100"
"Wolverhampton City Council","http://opendatacommunities.org/id/metropolitan-district-council/wolverhampton","710928","Yoo Recruit LTD","CWC10155301","138.71","Agency Staff","190439139","21/03/2018","School Planning & Resources","Primary - Transport","R1100"
"Wolverhampton City Council","http://opendatacommunities.org/id/metropolitan-district-council/wolverhampton","710928","Yoo Recruit LTD","CWC10155274","113.10","Agency Staff","190439112","21/03/2018","Adult Education","Caretakers","R1100"
"Wolverhampton City Council","http://opendatacommunities.org/id/metropolitan-district-council/wolverhampton","710928","Yoo Recruit LTD","CWC10155314","90.48","Agency Staff","190439152","21/03/2018","School Planning & Resources","Special - Transport","R1100"
"Wolverhampton City Council","http://opendatacommunities.org/id/metropolitan-district-council/wolverhampton","710928","Yoo Recruit LTD","CWC10155393","729.75","Agency Staff","190439231","21/03/2018","Headstart","Headstart Phase 3","R1100"
"Wolverhampton City Council","http://opendatacommunities.org/id/metropolitan-district-council/wolverhampton","710928","Yoo Recruit LTD","CWC10155257","151.07","Agency Staff","190439095","21/03/2018","Visitor Economy","Front of House","R1100"
"Wolverhampton City Council","http://opendatacommunities.org/id/metropolitan-district-council/wolverhampton","710928","Yoo Recruit LTD","CWC10155375","1,549.19","Agency Staff","190439213","21/03/2018","Child Protection","MASH","R1100"
"Wolverhampton City Council","http://opendatacommunities.org/id/metropolitan-district-council/wolverhampton","710928","Yoo Recruit LTD","CWC1015510","120.00","Agency Staff","190438848","21/03/2018","Looked After Children","LAC Transitions Team","R1100"
"Wolverhampton City Council","http://opendatacommunities.org/id/metropolitan-district-council/wolverhampton","710928","Yoo Recruit LTD","CWC10155298","4.03","Agency Staff","190439136","21/03/2018","Standards and Vulnerable Pupils","Music Support Team","R1100"
"Wolverhampton City Council","http://opendatacommunities.org/id/metropolitan-district-council/wolverhampton","710928","Yoo Recruit LTD","CWC10155361","1,374.66","Agency Staff","190439199","21/03/2018","Child Protection","CIN/CP Social Work Unit - Area 2","R1100"
"Wolverhampton City Council","http://opendatacommunities.org/id/metropolitan-district-council/wolverhampton","710928","Yoo Recruit LTD","CWC1015542","1,625.52","Agency Staff","190438880","21/03/2018","Emergency Duty Team","Emergency Duty Team","R1100"
"Wolverhampton City Council","http://opendatacommunities.org/id/metropolitan-district-council/wolverhampton","710928","Yoo Recruit LTD","CWC1015512","606.98","Agency Staff","190438850","21/03/2018","Youth Offending","Youth Offending Team","R1100"
"Wolverhampton City Council","http://opendatacommunities.org/id/metropolitan-district-council/wolverhampton","710928","Yoo Recruit LTD","CWC10155400","1,368.00","Agency Staff","190439238","21/03/2018","Adults Assessment & Care Management SLC","Supporting Life Choices","R1100"
"Wolverhampton City Council","http://opendatacommunities.org/id/metropolitan-district-council/wolverhampton","710928","Yoo Recruit LTD","CWC10155399","1,402.30","Agency Staff","190439237","21/03/2018","Adults Assessment & Care Management SLC","Supporting Life Choices","R1100"
"Wolverhampton City Council","http://opendatacommunities.org/id/metropolitan-district-council/wolverhampton","710928","Yoo Recruit LTD","CWC1015518","10.80","Agency Staff","190438856","21/03/2018","Youth Offending","Youth Offending Team","R1100"
"Wolverhampton City Council","http://opendatacommunities.org/id/metropolitan-district-council/wolverhampton","710928","Yoo Recruit LTD","CWC10155340","54.64","Agency Staff","190439178","21/03/2018","Leisure Services","WV Active Business Support","R1100"
"Wolverhampton City Council","http://opendatacommunities.org/id/metropolitan-district-council/wolverhampton","710928","Yoo Recruit LTD","CWC10155335","182.85","Agency Staff","190439173","21/03/2018","Leisure Services","WV Active Business Support","R1100"
"Wolverhampton City Council","http://opendatacommunities.org/id/metropolitan-district-council/wolverhampton","710928","Yoo Recruit LTD","CWC10155324","372.00","Agency Staff","190439162","21/03/2018","Central Corporate Budgets","Non Distributed Costs - Pensions Fund","R1100"
"Wolverhampton City Council","http://opendatacommunities.org/id/metropolitan-district-council/wolverhampton","710928","Yoo Recruit LTD","CWC1015549","850.50","Agency Staff","190438887","21/03/2018","Emergency Duty Team","Emergency Duty Team","R1100"
"Wolverhampton City Council","http://opendatacommunities.org/id/metropolitan-district-council/wolverhampton","710928","Yoo Recruit LTD","CWC10155242","102.51","Agency Staff","190439080","21/03/2018","Parking Services","Parking Enforcement","R1100"
"Wolverhampton City Council","http://opendatacommunities.org/id/metropolitan-district-council/wolverhampton","710928","Yoo Recruit LTD","CWC10155150","24.30","Agency Staff","190438988","21/03/2018","Safeguarding","Safeguarding Children","R1100"
"Wolverhampton City Council","http://opendatacommunities.org/id/metropolitan-district-council/wolverhampton","710928","Yoo Recruit LTD","CWC10155181","277.42","Agency Staff","190439019","21/03/2018","Customer Services","City Direct","R1100"
"Wolverhampton City Council","http://opendatacommunities.org/id/metropolitan-district-council/wolverhampton","710928","Yoo Recruit LTD","CWC10155149","5.40","Agency Staff","190438987","21/03/2018","Safeguarding","Safeguarding Children","R1100"
"Wolverhampton City Council","http://opendatacommunities.org/id/metropolitan-district-council/wolverhampton","710928","Yoo Recruit LTD","CWC10155185","289.35","Agency Staff","190439023","21/03/2018","Customer Services","City Direct","R1100"
"Wolverhampton City Council","http://opendatacommunities.org/id/metropolitan-district-council/wolverhampton","710928","Yoo Recruit LTD","CWC10155154","113.10","Agency Staff","190438992","21/03/2018","Catering","Primary Schools Catering","R1100"
"Wolverhampton City Council","http://opendatacommunities.org/id/metropolitan-district-council/wolverhampton","710928","Yoo Recruit LTD","CWC10155158","113.10","Agency Staff","190438996","21/03/2018","Catering","Primary Schools Catering","R1100"
"Wolverhampton City Council","http://opendatacommunities.org/id/metropolitan-district-council/wolverhampton","710928","Yoo Recruit LTD","CWC10155163","113.10","Agency Staff","190439001","21/03/2018","Catering","Primary Schools Catering","R1100"
"Wolverhampton City Council","http://opendatacommunities.org/id/metropolitan-district-council/wolverhampton","710928","Yoo Recruit LTD","CWC10155125","283.73","Agency Staff","190438963","21/03/2018","Leisure Services","Central Baths","R1100"
"Wolverhampton City Council","http://opendatacommunities.org/id/metropolitan-district-council/wolverhampton","710928","Yoo Recruit LTD","CWC1015595","5.40","Agency Staff","190438933","21/03/2018","Independent Living Service","Independent Living Service","R1100"
"Wolverhampton City Council","http://opendatacommunities.org/id/metropolitan-district-council/wolverhampton","710928","Yoo Recruit LTD","CWC1015594","4.50","Agency Staff","190438932","21/03/2018","Independent Living Service","Independent Living Service","R1100"
"Wolverhampton City Council","http://opendatacommunities.org/id/metropolitan-district-council/wolverhampton","710928","Yoo Recruit LTD","CWC10155225","2,980.55","Agency Staff","190439063","21/03/2018","ICTS","Application Management","R1100"
"Wolverhampton City Council","http://opendatacommunities.org/id/metropolitan-district-council/wolverhampton","710928","Yoo Recruit LTD","CWC10143312","975.27","Agency Staff","190429824","02/03/2018","Standards and Vulnerable Pupils","Music Support Team","R1100"
"Wolverhampton City Council","http://opendatacommunities.org/id/metropolitan-district-council/wolverhampton","710928","Yoo Recruit LTD","CWC10143432","594.60","Agency Staff","190429944","02/03/2018","Adults Assessment & Care Management SLC","Supporting Life Choices","R1100"
"Wolverhampton City Council","http://opendatacommunities.org/id/metropolitan-district-council/wolverhampton","710928","Yoo Recruit LTD","CWC1014313","42.30","Agency Staff","190429525","02/03/2018","Looked After Children","Looked After Team 1","R1100"
"Wolverhampton City Council","http://opendatacommunities.org/id/metropolitan-district-council/wolverhampton","710928","Yoo Recruit LTD","CWC10143207","752.21","Agency Staff","190429719","02/03/2018","Customer Services","City Direct","R1100"
"Wolverhampton City Council","http://opendatacommunities.org/id/metropolitan-district-council/wolverhampton","710928","Yoo Recruit LTD","CWC10143212","612.35","Agency Staff","190429724","02/03/2018","Customer Services","City Direct","R1100"
"Wolverhampton City Council","http://opendatacommunities.org/id/metropolitan-district-council/wolverhampton","710928","Yoo Recruit LTD","CWC10143222","169.65","Agency Staff","190429734","02/03/2018","Cleaning","Cleaning of Buildings - General","R1100"
"Wolverhampton City Council","http://opendatacommunities.org/id/metropolitan-district-council/wolverhampton","710928","Yoo Recruit LTD","CWC10143344","23.40","Agency Staff","190429856","02/03/2018","Child Protection","CIN - Warstones MAST - Area 4","R1100"
"Wolverhampton City Council","http://opendatacommunities.org/id/metropolitan-district-council/wolverhampton","710928","Yoo Recruit LTD","CWC10143257","170.85","Agency Staff","190429769","02/03/2018","Parking Services","Parking Enforcement","R1100"
"Wolverhampton City Council","http://opendatacommunities.org/id/metropolitan-district-council/wolverhampton","710928","Yoo Recruit LTD","CWC10143283","130.41","Agency Staff","190429795","02/03/2018","Visitor Economy","Bantock - Tea Rooms","R1100"
"Wolverhampton City Council","http://opendatacommunities.org/id/metropolitan-district-council/wolverhampton","710928","Yoo Recruit LTD","CWC10143409","2.25","Agency Staff","190429921","02/03/2018","Adults Assessment & Care Management North","Adult Services � North","R1100"
"Wolverhampton City Council","http://opendatacommunities.org/id/metropolitan-district-council/wolverhampton","710928","Yoo Recruit LTD","CWC10143406","10.80","Agency Staff","190429918","02/03/2018","Adults Assessment & Care Management North","Adult Services � North","R1100"
"Wolverhampton City Council","http://opendatacommunities.org/id/metropolitan-district-council/wolverhampton","710928","Yoo Recruit LTD","CWC10143415","4.95","Agency Staff","190429927","02/03/2018","Adults Assessment & Care Management North","Adult Services � North","R1100"
"Wolverhampton City Council","http://opendatacommunities.org/id/metropolitan-district-council/wolverhampton","710928","Yoo Recruit LTD","CWC10143417","8.55","Agency Staff","190429929","02/03/2018","Adults Assessment & Care Management North","Adult Services � North","R1100"
"Wolverhampton City Council","http://opendatacommunities.org/id/metropolitan-district-council/wolverhampton","710928","Yoo Recruit LTD","CWC10143418","11.25","Agency Staff","190429930","02/03/2018","Adults Assessment & Care Management North","Adult Services � North","R1100"
"Wolverhampton City Council","http://opendatacommunities.org/id/metropolitan-district-council/wolverhampton","710928","Yoo Recruit LTD","CWC10143446","1.80","Agency Staff","190429958","02/03/2018","Adults Assessment & Care Management SLC","Supporting Life Choices","R1100"
"Wolverhampton City Council","http://opendatacommunities.org/id/metropolitan-district-council/wolverhampton","710928","Yoo Recruit LTD","CWC10143167","113.10","Agency Staff","190429679","02/03/2018","Catering","Primary Schools Catering","R1100"
"Wolverhampton City Council","http://opendatacommunities.org/id/metropolitan-district-council/wolverhampton","710928","Yoo Recruit LTD","CWC10143162","121.50","Agency Staff","190429674","02/03/2018","Safeguarding","MCA General","R1100"
"Wolverhampton City Council","http://opendatacommunities.org/id/metropolitan-district-council/wolverhampton","710928","Yoo Recruit LTD","CWC10143450","490.03","Agency Staff","190429962","02/03/2018","Leisure Services","WV Active Catering - Central","R1100"
"Wolverhampton City Council","http://opendatacommunities.org/id/metropolitan-district-council/wolverhampton","710928","Yoo Recruit LTD","CWC1014316","7.65","Agency Staff","190429528","02/03/2018","Looked After Children","Looked After Team 1","R1100"
"Wolverhampton City Council","http://opendatacommunities.org/id/metropolitan-district-council/wolverhampton","710928","Yoo Recruit LTD","CWC10143190","115.60","Agency Staff","190429702","02/03/2018","Catering","Other Catering - General Overheads","R1100"
"Wolverhampton City Council","http://opendatacommunities.org/id/metropolitan-district-council/wolverhampton","710928","Yoo Recruit LTD","CWC10143215","113.40","Agency Staff","190429727","02/03/2018","Cleaning","Cleaning of Buildings - General","R1100"
"Wolverhampton City Council","http://opendatacommunities.org/id/metropolitan-district-council/wolverhampton","710928","Yoo Recruit LTD","CWC10143225","133.25","Agency Staff","190429737","02/03/2018","Cleaning","Cleaning of Buildings - General","R1100"
"Wolverhampton City Council","http://opendatacommunities.org/id/metropolitan-district-council/wolverhampton","710928","Yoo Recruit LTD","CWC10143339","436.88","Agency Staff","190429851","02/03/2018","School Planning & Resources","Technical Support","R1100"
"Wolverhampton City Council","http://opendatacommunities.org/id/metropolitan-district-council/wolverhampton","710928","Yoo Recruit LTD","CWC10143345","2.00","Agency Staff","190429857","02/03/2018","Child Protection","CIN - Warstones MAST - Area 4","R1100"
"Wolverhampton City Council","http://opendatacommunities.org/id/metropolitan-district-council/wolverhampton","710928","Yoo Recruit LTD","Consolidated27OR","164,479.97","Agency Staff","190429511","02/03/2018","Central Corporate Budgets","Yoo Recruit Payments","R1100"
"Wolverhampton City Council","http://opendatacommunities.org/id/metropolitan-district-council/wolverhampton","710928","Yoo Recruit LTD","CWC10143255","136.68","Agency Staff","190429767","02/03/2018","Parking Services","Parking Enforcement","R1100"
"Wolverhampton City Council","http://opendatacommunities.org/id/metropolitan-district-council/wolverhampton","710928","Yoo Recruit LTD","CWC10143270","3.00","Agency Staff","190429782","02/03/2018","Legal Services","Legal Services","R1100"
"Wolverhampton City Council","http://opendatacommunities.org/id/metropolitan-district-council/wolverhampton","710928","Yoo Recruit LTD","CWC10143379","497.65","Agency Staff","190429891","02/03/2018","The Hub","Payroll/HR","R1100"
"Wolverhampton City Council","http://opendatacommunities.org/id/metropolitan-district-council/wolverhampton","710928","Yoo Recruit LTD","CWC10143103","4.95","Agency Staff","190429615","02/03/2018","Independent Living Service","Independent Living Service","R1100"
"Wolverhampton City Council","http://opendatacommunities.org/id/metropolitan-district-council/wolverhampton","710928","Yoo Recruit LTD","CWC10143104","9.00","Agency Staff","190429616","02/03/2018","Independent Living Service","Independent Living Service","R1100"
"Wolverhampton City Council","http://opendatacommunities.org/id/metropolitan-district-council/wolverhampton","710928","Yoo Recruit LTD","CWC10143392","1,549.19","Agency Staff","190429904","02/03/2018","Child Protection","MASH","R1100"
"Wolverhampton City Council","http://opendatacommunities.org/id/metropolitan-district-council/wolverhampton","710928","Yoo Recruit LTD","CWC10143401","151.32","Agency Staff","190429913","02/03/2018","Specialist Support","Vulnerable Young Persons Team","R1100"
"Wolverhampton City Council","http://opendatacommunities.org/id/metropolitan-district-council/wolverhampton","710928","Yoo Recruit LTD","CWC10143114","3.60","Agency Staff","190429626","02/03/2018","Independent Living Service","Independent Living Service","R1100"
"Wolverhampton City Council","http://opendatacommunities.org/id/metropolitan-district-council/wolverhampton","710928","Yoo Recruit LTD","CWC10143399","66.90","Agency Staff","190429911","02/03/2018","Early Intervention","EIP Locality 4 - Bingley","R1100"
"Wolverhampton City Council","http://opendatacommunities.org/id/metropolitan-district-council/wolverhampton","710928","Yoo Recruit LTD","CWC1014347","1,455.00","Agency Staff","190429559","02/03/2018","Mental Health Assesment & Care Management","Mental Health Assessment & Care Management","R1100"
"Wolverhampton City Council","http://opendatacommunities.org/id/metropolitan-district-council/wolverhampton","710928","Yoo Recruit LTD","CWC10143229","237.51","Agency Staff","190429741","02/03/2018","Cleaning","External Cleaning","R1100"
"Wolverhampton City Council","http://opendatacommunities.org/id/metropolitan-district-council/wolverhampton","710928","Yoo Recruit LTD","CWC10143131","86.48","Agency Staff","190429643","02/03/2018","Leisure Services","Bert Williams Leisure Centre","R1100"
"Wolverhampton City Council","http://opendatacommunities.org/id/metropolitan-district-council/wolverhampton","710928","Yoo Recruit LTD","CWC10143139","100.88","Agency Staff","190429651","02/03/2018","Leisure Services","Bert Williams Leisure Centre","R1100"
"Wolverhampton City Council","http://opendatacommunities.org/id/metropolitan-district-council/wolverhampton","710928","Yoo Recruit LTD","CWC10143141","151.32","Agency Staff","190429653","02/03/2018","Leisure Services","Bert Williams Leisure Centre","R1100"
"Wolverhampton City Council","http://opendatacommunities.org/id/metropolitan-district-council/wolverhampton","710928","Yoo Recruit LTD","CWC10143315","21.60","Agency Staff","190429827","02/03/2018","Standards and Vulnerable Pupils","Music Support Team","R1100"
"Wolverhampton City Council","http://opendatacommunities.org/id/metropolitan-district-council/wolverhampton","710928","Yoo Recruit LTD","CWC10143434","1,398.60","Agency Staff","190429946","02/03/2018","Adults Assessment & Care Management SLC","Supporting Life Choices","R1100"
"Wolverhampton City Council","http://opendatacommunities.org/id/metropolitan-district-council/wolverhampton","710928","Yoo Recruit LTD","CWC10143169","90.48","Agency Staff","190429681","02/03/2018","Catering","Primary Schools Catering","R1100"
"Wolverhampton City Council","http://opendatacommunities.org/id/metropolitan-district-council/wolverhampton","710928","Yoo Recruit LTD","CWC10143435","1,368.00","Agency Staff","190429947","02/03/2018","Adults Assessment & Care Management SLC","Supporting Life Choices","R1100"
"Wolverhampton City Council","http://opendatacommunities.org/id/metropolitan-district-council/wolverhampton","710928","Yoo Recruit LTD","CWC1014310","1,276.47","Agency Staff","190429522","02/03/2018","Looked After Children","Looked After Team 1","R1100"
"Wolverhampton City Council","http://opendatacommunities.org/id/metropolitan-district-council/wolverhampton","710928","Yoo Recruit LTD","CWC10143442","3.15","Agency Staff","190429954","02/03/2018","Adults Assessment & Care Management SLC","Supporting Life Choices","R1100"
"Wolverhampton City Council","http://opendatacommunities.org/id/metropolitan-district-council/wolverhampton","710928","Yoo Recruit LTD","CWC10143235","141.38","Agency Staff","190429747","02/03/2018","Cleaning","Other Cleaning","R1100"
"Wolverhampton City Council","http://opendatacommunities.org/id/metropolitan-district-council/wolverhampton","710928","Yoo Recruit LTD","CWC10143454","617.63","Agency Staff","190429966","02/03/2018","Digital Transformation Programme","Digital Transformation Programme (Recharge to Capital)","R1100"
"Wolverhampton City Council","http://opendatacommunities.org/id/metropolitan-district-council/wolverhampton","710928","Yoo Recruit LTD","CWC10143456","2,357.50","Agency Staff","190429968","02/03/2018","Digital Transformation Programme","Digital Transformation Programme (Recharge to Capital)","R1100"
"Wolverhampton City Council","http://opendatacommunities.org/id/metropolitan-district-council/wolverhampton","710928","Yoo Recruit LTD","CWC10143351","64.34","Agency Staff","190429863","02/03/2018","Visitor Economy","Civic Halls Non-Direct Event Management Account","R1100"
"Wolverhampton City Council","http://opendatacommunities.org/id/metropolitan-district-council/wolverhampton","710928","Yoo Recruit LTD","CWC1014363","98.43","Agency Staff","190429575","02/03/2018","Strategic Organisation Development","Global Budgets","R1100"
"Wolverhampton City Council","http://opendatacommunities.org/id/metropolitan-district-council/wolverhampton","710928","Yoo Recruit LTD","CWC10143182","22.68","Agency Staff","190429694","02/03/2018","Catering","Other Catering - General Overheads","R1100"
"Wolverhampton City Council","http://opendatacommunities.org/id/metropolitan-district-council/wolverhampton","710928","Yoo Recruit LTD","CWC1014339","1,599.12","Agency Staff","190429551","02/03/2018","Emergency Duty Team","Emergency Duty Team","R1100"
"Wolverhampton City Council","http://opendatacommunities.org/id/metropolitan-district-council/wolverhampton","710928","Yoo Recruit LTD","CWC10143204","372.00","Agency Staff","190429716","02/03/2018","Customer Services","City Direct","R1100"
"Wolverhampton City Council","http://opendatacommunities.org/id/metropolitan-district-council/wolverhampton","710928","Yoo Recruit LTD","CWC10143203","201.76","Agency Staff","190429715","02/03/2018","Customer Services","City Direct","R1100"
"Wolverhampton City Council","http://opendatacommunities.org/id/metropolitan-district-council/wolverhampton","710928","Yoo Recruit LTD","CWC10143189","68.04","Agency Staff","190429701","02/03/2018","Catering","Other Catering - General Overheads","R1100"
"Wolverhampton City Council","http://opendatacommunities.org/id/metropolitan-district-council/wolverhampton","710928","Yoo Recruit LTD","CWC10143460","3,091.30","Agency Staff","190429972","02/03/2018","Digital Transformation Programme","Digital Transformation Programme (Recharge to Capital)","R1100"
"Wolverhampton City Council","http://opendatacommunities.org/id/metropolitan-district-council/wolverhampton","710928","Yoo Recruit LTD","CWC10143197","205.76","Agency Staff","190429709","02/03/2018","Customer Services","City Direct","R1100"
"Wolverhampton City Council","http://opendatacommunities.org/id/metropolitan-district-council/wolverhampton","710928","Yoo Recruit LTD","CWC10143218","56.55","Agency Staff","190429730","02/03/2018","Cleaning","Cleaning of Buildings - General","R1100"
"Wolverhampton City Council","http://opendatacommunities.org/id/metropolitan-district-council/wolverhampton","710928","Yoo Recruit LTD","CWC10143323","265.79","Agency Staff","190429835","02/03/2018","School Planning & Resources","Special - Transport","R1100"
"Wolverhampton City Council","http://opendatacommunities.org/id/metropolitan-district-council/wolverhampton","710928","Yoo Recruit LTD","CWC10143328","239.20","Agency Staff","190429840","02/03/2018","School Planning & Resources","Special - Transport","R1100"
"Wolverhampton City Council","http://opendatacommunities.org/id/metropolitan-district-council/wolverhampton","710928","Yoo Recruit LTD","CWC10143332","98.96","Agency Staff","190429844","02/03/2018","School Planning & Resources","Special - Transport","R1100"
"Wolverhampton City Council","http://opendatacommunities.org/id/metropolitan-district-council/wolverhampton","710928","Yoo Recruit LTD","CWC10143337","226.20","Agency Staff","190429849","02/03/2018","School Planning & Resources","Special - Transport","R1100"
"Wolverhampton City Council","http://opendatacommunities.org/id/metropolitan-district-council/wolverhampton","710928","Yoo Recruit LTD","CWC10143243","327.90","Agency Staff","190429755","02/03/2018","Corporate Business Support","Corporate Programmes","R1100"
"Wolverhampton City Council","http://opendatacommunities.org/id/metropolitan-district-council/wolverhampton","710928","Yoo Recruit LTD","CWC10143242","2,232.50","Agency Staff","190429754","02/03/2018","Commercial Services","Corporate Procurement Unit","R1100"
"Wolverhampton City Council","http://opendatacommunities.org/id/metropolitan-district-council/wolverhampton","710928","Yoo Recruit LTD","CWC1014365","57.90","Agency Staff","190429577","02/03/2018","Strategic Organisation Development","Global Budgets","R1100"
"Wolverhampton City Council","http://opendatacommunities.org/id/metropolitan-district-council/wolverhampton","710928","Yoo Recruit LTD","CWC10143251","236.34","Agency Staff","190429763","02/03/2018","Parking Services","Parking Enforcement","R1100"
"Wolverhampton City Council","http://opendatacommunities.org/id/metropolitan-district-council/wolverhampton","710928","Yoo Recruit LTD","CWC10143253","330.31","Agency Staff","190429765","02/03/2018","Parking Services","Parking Enforcement","R1100"
"Wolverhampton City Council","http://opendatacommunities.org/id/metropolitan-district-council/wolverhampton","710928","Yoo Recruit LTD","CWC10143256","261.97","Agency Staff","190429768","02/03/2018","Parking Services","Parking Enforcement","R1100"
"Wolverhampton City Council","http://opendatacommunities.org/id/metropolitan-district-council/wolverhampton","710928","Yoo Recruit LTD","CWC10143100","1,193.50","Agency Staff","190429612","02/03/2018","Independent Living Service","Independent Living Service","R1100"
"Wolverhampton City Council","http://opendatacommunities.org/id/metropolitan-district-council/wolverhampton","710928","Yoo Recruit LTD","CWC10143373","242.73","Agency Staff","190429885","02/03/2018","Leisure Services","WV Active Business Support","R1100"
"Wolverhampton City Council","http://opendatacommunities.org/id/metropolitan-district-council/wolverhampton","710928","Yoo Recruit LTD","CWC10143277","72.74","Agency Staff","190429789","02/03/2018","Visitor Economy","Front of House","R1100"
"Wolverhampton City Council","http://opendatacommunities.org/id/metropolitan-district-council/wolverhampton","710928","Yoo Recruit LTD","CWC10143293","2,262.50","Agency Staff","190429805","02/03/2018","Adult Education","SMT - Senior Management Team","R1100"
"Wolverhampton City Council","http://opendatacommunities.org/id/metropolitan-district-council/wolverhampton","710928","Yoo Recruit LTD","CWC10143122","149.89","Agency Staff","190429634","02/03/2018","Leisure Services","WV Active Catering","R1100"
"Wolverhampton City Council","http://opendatacommunities.org/id/metropolitan-district-council/wolverhampton","710928","Yoo Recruit LTD","CWC10143286","1,138.16","Agency Staff","190429798","02/03/2018","Housing","Housing Regeneration - Strategy & Development","R1100"
"Wolverhampton City Council","http://opendatacommunities.org/id/metropolitan-district-council/wolverhampton","710928","Yoo Recruit LTD","CWC10143295","331.20","Agency Staff","190429807","02/03/2018","Adult Education","Direct Delivery Team ( L.& D.)","R1100"
"Wolverhampton City Council","http://opendatacommunities.org/id/metropolitan-district-council/wolverhampton","710928","Yoo Recruit LTD","CWC10143281","50.44","Agency Staff","190429793","02/03/2018","Visitor Economy","Education And Access","R1100"
"Wolverhampton City Council","http://opendatacommunities.org/id/metropolitan-district-council/wolverhampton","710928","Yoo Recruit LTD","CWC101439","19.49","Agency Staff","190429521","02/03/2018","Looked After Children","LAC Transitions Team","R1100"
"Wolverhampton City Council","http://opendatacommunities.org/id/metropolitan-district-council/wolverhampton","710928","Yoo Recruit LTD","CWC10143108","5.40","Agency Staff","190429620","02/03/2018","Independent Living Service","Independent Living Service","R1100"
"Wolverhampton City Council","http://opendatacommunities.org/id/metropolitan-district-council/wolverhampton","710928","Yoo Recruit LTD","CWC10143231","80.08","Agency Staff","190429743","02/03/2018","Cleaning","External Cleaning","R1100"
"Wolverhampton City Council","http://opendatacommunities.org/id/metropolitan-district-council/wolverhampton","710928","Yoo Recruit LTD","CWC10143134","86.48","Agency Staff","190429646","02/03/2018","Leisure Services","Bert Williams Leisure Centre","R1100"
"Wolverhampton City Council","http://opendatacommunities.org/id/metropolitan-district-council/wolverhampton","710928","Yoo Recruit LTD","CWC10143135","190.65","Agency Staff","190429647","02/03/2018","Leisure Services","Bert Williams Leisure Centre","R1100"
"Wolverhampton City Council","http://opendatacommunities.org/id/metropolitan-district-council/wolverhampton","710928","Yoo Recruit LTD","CWC10143431","1,093.26","Agency Staff","190429943","02/03/2018","Head of Commissioning","Head of Strategic Commissioning","R1100"
"Wolverhampton City Council","http://opendatacommunities.org/id/metropolitan-district-council/wolverhampton","710928","Yoo Recruit LTD","CWC10143452","1,106.30","Agency Staff","190429964","02/03/2018","Digital Transformation Programme","Digital Transformation Programme (Recharge to Capital)","R1100"
"Wolverhampton City Council","http://opendatacommunities.org/id/metropolitan-district-council/wolverhampton","710928","Yoo Recruit LTD","CWC10143250","79.17","Agency Staff","190429762","02/03/2018","Fleet Services","Passenger Transport - General","R1100"
"Wolverhampton City Council","http://opendatacommunities.org/id/metropolitan-district-council/wolverhampton","710928","Yoo Recruit LTD","CWC10143110","4.50","Agency Staff","190429622","02/03/2018","Independent Living Service","Independent Living Service","R1100"
"Wolverhampton City Council","http://opendatacommunities.org/id/metropolitan-district-council/wolverhampton","710928","Yoo Recruit LTD","CWC10143402","729.75","Agency Staff","190429914","02/03/2018","Headstart","Headstart Phase 3","R1100"
"Wolverhampton City Council","http://opendatacommunities.org/id/metropolitan-district-council/wolverhampton","710928","Yoo Recruit LTD","CWC10143311","686.63","Agency Staff","190429823","02/03/2018","Standards and Vulnerable Pupils","Music Support Team","R1100"
"Wolverhampton City Council","http://opendatacommunities.org/id/metropolitan-district-council/wolverhampton","710928","Yoo Recruit LTD","CWC10143427","4.50","Agency Staff","190429939","02/03/2018","Adults Assessment & Care Management North","Adult Services � North","R1100"
"Wolverhampton City Council","http://opendatacommunities.org/id/metropolitan-district-council/wolverhampton","710928","Yoo Recruit LTD","CWC1014362","158.54","Agency Staff","190429574","02/03/2018","Strategic Organisation Development","Blakenhall Community & Healthy Living Centre","R1100"
"Wolverhampton City Council","http://opendatacommunities.org/id/metropolitan-district-council/wolverhampton","710928","Yoo Recruit LTD","CWC10143348","466.57","Agency Staff","190429860","02/03/2018","Safeguarding","Safeguarding & Quality Administration","R1100"
"Wolverhampton City Council","http://opendatacommunities.org/id/metropolitan-district-council/wolverhampton","710928","Yoo Recruit LTD","CWC1014364","92.64","Agency Staff","190429576","02/03/2018","Strategic Organisation Development","Global Budgets","R1100"
"Wolverhampton City Council","http://opendatacommunities.org/id/metropolitan-district-council/wolverhampton","710928","Yoo Recruit LTD","CWC1014317","4.05","Agency Staff","190429529","02/03/2018","Looked After Children","Looked After Team 1","R1100"
"Wolverhampton City Council","http://opendatacommunities.org/id/metropolitan-district-council/wolverhampton","710928","Yoo Recruit LTD","CWC1014330","838.35","Agency Staff","190429542","02/03/2018","Independent Living Service","Adaptations Team","R1100"
"Wolverhampton City Council","http://opendatacommunities.org/id/metropolitan-district-council/wolverhampton","710928","Yoo Recruit LTD","CWC1014318","13.05","Agency Staff","190429530","02/03/2018","Looked After Children","Looked After Team 1","R1100"
"Wolverhampton City Council","http://opendatacommunities.org/id/metropolitan-district-council/wolverhampton","710928","Yoo Recruit LTD","CWC1014355","679.00","Agency Staff","190429567","02/03/2018","Mental Health Assesment & Care Management","Mental Health Assessment & Care Management","R1100"
"Wolverhampton City Council","http://opendatacommunities.org/id/metropolitan-district-council/wolverhampton","710928","Yoo Recruit LTD","CWC10143336","158.34","Agency Staff","190429848","02/03/2018","School Planning & Resources","Special - Transport","R1100"
"Wolverhampton City Council","http://opendatacommunities.org/id/metropolitan-district-council/wolverhampton","710928","Yoo Recruit LTD","Consolidated27RD","-164,479.97","Agency Staff","190429512","02/03/2018","Central Corporate Budgets","Yoo Recruit Payments","R1100"
"Wolverhampton City Council","http://opendatacommunities.org/id/metropolitan-district-council/wolverhampton","710928","Yoo Recruit LTD","CWC10143264","468.42","Agency Staff","190429776","02/03/2018","Revenues & Benefits","Revenues","R1100"
"Wolverhampton City Council","http://opendatacommunities.org/id/metropolitan-district-council/wolverhampton","710928","Yoo Recruit LTD","CWC10143372","161.82","Agency Staff","190429884","02/03/2018","Leisure Services","WV Active Business Support","R1100"
"Wolverhampton City Council","http://opendatacommunities.org/id/metropolitan-district-council/wolverhampton","710928","Yoo Recruit LTD","CWC10143118","11.79","Agency Staff","190429630","02/03/2018","Adults Assessment & Care Management North","Assessment Team (North)","R1100"
"Wolverhampton City Council","http://opendatacommunities.org/id/metropolitan-district-council/wolverhampton","710928","Yoo Recruit LTD","I0775","14,375.00","Agency Staff","130208565","16/03/2018","Strategic Director Place","Strategic Director Place","R1100"
"Wolverhampton City Council","http://opendatacommunities.org/id/metropolitan-district-council/wolverhampton","710928","Yoo Recruit LTD","CWC10143371","107.88","Agency Staff","190429883","02/03/2018","Leisure Services","WV Active Business Support","R1100"
"Wolverhampton City Council","http://opendatacommunities.org/id/metropolitan-district-council/wolverhampton","710928","Yoo Recruit LTD","CWC10143308","110.49","Agency Staff","190429820","02/03/2018","Adult Education","Learner Services","R1100"
"Wolverhampton City Council","http://opendatacommunities.org/id/metropolitan-district-council/wolverhampton","710928","Yoo Recruit LTD","CWC10143175","113.10","Agency Staff","190429687","02/03/2018","Catering","Primary Schools Catering","R1100"
"Wolverhampton City Council","http://opendatacommunities.org/id/metropolitan-district-council/wolverhampton","710928","Yoo Recruit LTD","CWC10143349","1,211.01","Agency Staff","190429861","02/03/2018","Child Protection","Dove  - CIN  Social Work Unit - S17","R1100"
"Wolverhampton City Council","http://opendatacommunities.org/id/metropolitan-district-council/wolverhampton","710928","Yoo Recruit LTD","CWC10143184","113.10","Agency Staff","190429696","02/03/2018","Catering","Other Catering - General Overheads","R1100"
"Wolverhampton City Council","http://opendatacommunities.org/id/metropolitan-district-council/wolverhampton","710928","Yoo Recruit LTD","CWC10143324","299.00","Agency Staff","190429836","02/03/2018","School Planning & Resources","Special - Transport","R1100"
"Wolverhampton City Council","http://opendatacommunities.org/id/metropolitan-district-council/wolverhampton","710928","Yoo Recruit LTD","CWC1014375","-1,615.00","Agency Staff","190429587","02/03/2018","Independent Living Service","Independent Living Service","R1100"
"Wolverhampton City Council","http://opendatacommunities.org/id/metropolitan-district-council/wolverhampton","710928","Yoo Recruit LTD","CWC1014370","112.86","Agency Staff","190429582","02/03/2018","Strategic Organisation Development","Adult Lending Library","R1100"
"Wolverhampton City Council","http://opendatacommunities.org/id/metropolitan-district-council/wolverhampton","710928","Yoo Recruit LTD","CWC10143271","1.00","Agency Staff","190429783","02/03/2018","Legal Services","Legal Services","R1100"
"Wolverhampton City Council","http://opendatacommunities.org/id/metropolitan-district-council/wolverhampton","710928","Yoo Recruit LTD","CWC10143263","46.60","Agency Staff","190429775","02/03/2018","Democratic Services","Register Office","R1100"
"Wolverhampton City Council","http://opendatacommunities.org/id/metropolitan-district-council/wolverhampton","710928","Yoo Recruit LTD","CWC1014396","1,097.25","Agency Staff","190429608","02/03/2018","Independent Living Service","Independent Living Service","R1100"
"Wolverhampton City Council","http://opendatacommunities.org/id/metropolitan-district-council/wolverhampton","710928","Yoo Recruit LTD","CWC1014395","-1,083.00","Agency Staff","190429607","02/03/2018","Independent Living Service","Independent Living Service","R1100"
"Wolverhampton City Council","http://opendatacommunities.org/id/metropolitan-district-council/wolverhampton","710928","Yoo Recruit LTD","CWC1014399","-1,178.00","Agency Staff","190429611","02/03/2018","Independent Living Service","Independent Living Service","R1100"
"Wolverhampton City Council","http://opendatacommunities.org/id/metropolitan-district-council/wolverhampton","710928","Yoo Recruit LTD","CWC10143276","55.95","Agency Staff","190429788","02/03/2018","Visitor Economy","Front of House","R1100"
"Wolverhampton City Council","http://opendatacommunities.org/id/metropolitan-district-council/wolverhampton","710928","Yoo Recruit LTD","CWC10143387","1,214.71","Agency Staff","190429899","02/03/2018","Child Protection","CIN/CP Social Work Unit - Area 7","R1100"
"Wolverhampton City Council","http://opendatacommunities.org/id/metropolitan-district-council/wolverhampton","710968","Something Different (UK)","19382","812.50","Marketing \ Non-staff advertising","130206395","14/03/2018","Housing","Wholly Owned Company - Operations","R4317"
"Wolverhampton City Council","http://opendatacommunities.org/id/metropolitan-district-council/wolverhampton","710968","Something Different (UK)","19190","102.00","Marketing \ Non-staff advertising","130200735","02/03/2018","Corporate Communications","Communications & Marketing - General","R4317"
"Wolverhampton City Council","http://opendatacommunities.org/id/metropolitan-district-council/wolverhampton","710968","Something Different (UK)","19189","306.00","Marketing \ Non-staff advertising","130200302","09/03/2018","Corporate Communications","Communications & Marketing - General","R4317"
"Wolverhampton City Council","http://opendatacommunities.org/id/metropolitan-district-council/wolverhampton","710968","Something Different (UK)","19375","1,655.00","Clothing / Uniforms","130206394","14/03/2018","Headstart","Headstart - Young People Engagement","R4201"
"Wolverhampton City Council","http://opendatacommunities.org/id/metropolitan-district-council/wolverhampton","710968","Something Different (UK)","19375","33.00","Comms - Postage","130206394","14/03/2018","Headstart","Headstart - Young People Engagement","R4503"
"Wolverhampton City Council","http://opendatacommunities.org/id/metropolitan-district-council/wolverhampton","710969","Asist","PR665","53.00","TPP - Social Care Support Services","130206396","21/03/2018","Safeguarding","MCA General","R5501"
"Wolverhampton City Council","http://opendatacommunities.org/id/metropolitan-district-council/wolverhampton","710969","Asist","PR648","106.50","TPP - Social Care Support Services","130208909","26/03/2018","Safeguarding","MCA General","R5501"
"Wolverhampton City Council","http://opendatacommunities.org/id/metropolitan-district-council/wolverhampton","710969","Asist","PR632","106.50","TPP - Social Care Support Services","130208908","26/03/2018","Safeguarding","MCA General","R5501"
"Wolverhampton City Council","http://opendatacommunities.org/id/metropolitan-district-council/wolverhampton","710972","Perry Hall Multi-Academy Trust","P16808120180313","600.00","Grant Payments to Individuals","190435204","14/03/2018","Looked After Children","LAC Education Team (LACE)","R6402"
"Wolverhampton City Council","http://opendatacommunities.org/id/metropolitan-district-council/wolverhampton","710972","Perry Hall Multi-Academy Trust","P16808120180313","650.00","Grant Payments to Individuals","190435204","14/03/2018","Looked After Children","LAC Education Team (LACE)","R6402"
"Wolverhampton City Council","http://opendatacommunities.org/id/metropolitan-district-council/wolverhampton","710972","Perry Hall Multi-Academy Trust","P16808120180313","650.00","Grant Payments to Individuals","190435204","14/03/2018","Looked After Children","LAC Education Team (LACE)","R6402"
"Wolverhampton City Council","http://opendatacommunities.org/id/metropolitan-district-council/wolverhampton","710972","Perry Hall Multi-Academy Trust","P16808120180313","650.00","Grant Payments to Individuals","190435204","14/03/2018","Looked After Children","LAC Education Team (LACE)","R6402"
"Wolverhampton City Council","http://opendatacommunities.org/id/metropolitan-district-council/wolverhampton","710972","Perry Hall Multi-Academy Trust","SEN Mainstream Top Ups Spring Term 2017/18 - Berrybrook Academy","3,689.31","Grant Payments","190439926","23/03/2018","Schools","High Needs Top Up -Mainstream Schools/Academies","R4700"
"Wolverhampton City Council","http://opendatacommunities.org/id/metropolitan-district-council/wolverhampton","711006","Children United Ltd","NEF Spring 2018 INST 2","21,857.00","TPP - Private Nursery Education Funding","190439901","23/03/2018","Early Years","Early Years Universal Entitlement for 3 and 4 Year Olds","R5035"
"Wolverhampton City Council","http://opendatacommunities.org/id/metropolitan-district-council/wolverhampton","711006","Children United Ltd","TFT Spring 2018 Inst 2","5,847.84","TPP - Private Nursery Education Funding","190439893","23/03/2018","Early Years","Early Years Entitlement Funding for Disadvantaged 2 Year Olds","R5035"
"Wolverhampton City Council","http://opendatacommunities.org/id/metropolitan-district-council/wolverhampton","711006","Children United Ltd","EYPP Spring 2018","286.20","TPP - Private Nursery Education Funding","190441753","26/03/2018","Early Years","Early Years Pupil Premium","R5035"
"Wolverhampton City Council","http://opendatacommunities.org/id/metropolitan-district-council/wolverhampton","711008","Stephanie Moore","TFT Spring 2018 Inst 2","377.28","TPP - Private Nursery Education Funding","190439893","23/03/2018","Early Years","Early Years Entitlement Funding for Disadvantaged 2 Year Olds","R5035"
"Wolverhampton City Council","http://opendatacommunities.org/id/metropolitan-district-council/wolverhampton","711008","Stephanie Moore","NEF Spring 2018 INST 2","918.00","TPP - Private Nursery Education Funding","190439901","23/03/2018","Early Years","Early Years Universal Entitlement for 3 and 4 Year Olds","R5035"
"Wolverhampton City Council","http://opendatacommunities.org/id/metropolitan-district-council/wolverhampton","711010","Network Ventures Ltd","076V169836","2,275.00","Services - Professional Fees","130206732","07/03/2018","ICTS","Strategic ICTS (ICT Service Budget)","R4400"
"Wolverhampton City Council","http://opendatacommunities.org/id/metropolitan-district-council/wolverhampton","711010","Network Ventures Ltd","076V169943","2,000.00","Agency Staff","130207893","21/03/2018","Corporate Business Support","Corporate Programmes","R1100"
"Wolverhampton City Council","http://opendatacommunities.org/id/metropolitan-district-council/wolverhampton","711010","Network Ventures Ltd","076V169943","500.00","Agency Staff","130207893","21/03/2018","Corporate Business Support","Corporate Programmes","R1100"
"Wolverhampton City Council","http://opendatacommunities.org/id/metropolitan-district-council/wolverhampton","711010","Network Ventures Ltd","076V169897","1,400.00","Agency Staff","130207324","14/03/2018","Corporate Business Support","Corporate Programmes","R1100"
"Wolverhampton City Council","http://opendatacommunities.org/id/metropolitan-district-council/wolverhampton","711010","Network Ventures Ltd","055v400364","175.50","Services - Professional Fees","130207586","02/03/2018","Looked After Children","Pupil Premium","R4400"
"Wolverhampton City Council","http://opendatacommunities.org/id/metropolitan-district-council/wolverhampton","711010","Network Ventures Ltd","076V169896","2,275.00","Services - Professional Fees","130207323","14/03/2018","ICTS","Strategic ICTS (ICT Service Budget)","R4400"
"Wolverhampton City Council","http://opendatacommunities.org/id/metropolitan-district-council/wolverhampton","711010","Network Ventures Ltd","076V169955","2,275.00","Services - Professional Fees","130207894","21/03/2018","ICTS","Strategic ICTS (ICT Service Budget)","R4400"
"Wolverhampton City Council","http://opendatacommunities.org/id/metropolitan-district-council/wolverhampton","711010","Network Ventures Ltd","076V169823","2,500.00","Agency Staff","130206731","07/03/2018","Corporate Business Support","Corporate Programmes","R1100"
"Wolverhampton City Council","http://opendatacommunities.org/id/metropolitan-district-council/wolverhampton","711010","Network Ventures Ltd","076V169877","1,725.00","Services - Professional Fees","130207891","14/03/2018","ICTS","Strategic ICTS (ICT Service Budget)","R4400"
"Wolverhampton City Council","http://opendatacommunities.org/id/metropolitan-district-council/wolverhampton","711010","Network Ventures Ltd","076V169936","1,725.00","Services - Professional Fees","130207892","21/03/2018","ICTS","Strategic ICTS (ICT Service Budget)","R4400"
"Wolverhampton City Council","http://opendatacommunities.org/id/metropolitan-district-council/wolverhampton","711010","Network Ventures Ltd","076V169816","1,725.00","Services - Professional Fees","130207890","07/03/2018","ICTS","Strategic ICTS (ICT Service Budget)","R4400"
"Wolverhampton City Council","http://opendatacommunities.org/id/metropolitan-district-council/wolverhampton","711010","Network Ventures Ltd","055V401827","58.50","Services - Professional Fees","130209803","23/03/2018","Looked After Children","Pupil Premium","R4400"
"Wolverhampton City Council","http://opendatacommunities.org/id/metropolitan-district-council/wolverhampton","711010","Network Ventures Ltd","076V169884","1,875.00","Agency Staff","130207322","14/03/2018","Corporate Business Support","Corporate Programmes","R1100"
"Wolverhampton City Council","http://opendatacommunities.org/id/metropolitan-district-council/wolverhampton","711010","Network Ventures Ltd","076V169956","1,400.00","Agency Staff","130207895","21/03/2018","Corporate Business Support","Corporate Programmes","R1100"
"Wolverhampton City Council","http://opendatacommunities.org/id/metropolitan-district-council/wolverhampton","711010","Network Ventures Ltd","076V169837","1,400.00","Agency Staff","130207321","07/03/2018","Corporate Business Support","Corporate Programmes","R1100"
"Wolverhampton City Council","http://opendatacommunities.org/id/metropolitan-district-council/wolverhampton","711010","Network Ventures Ltd","055V401826","58.50","Services - Professional Fees","130210357","23/03/2018","Looked After Children","Pupil Premium","R4400"
"Wolverhampton City Council","http://opendatacommunities.org/id/metropolitan-district-council/wolverhampton","711015","The OT Practice","011094","338.85","TPP - Social Care Support Services","130208430","21/03/2018","Safeguarding","MCA General","R5501"
"Wolverhampton City Council","http://opendatacommunities.org/id/metropolitan-district-council/wolverhampton","711016","Walsall Council","677022","1,350.00","Services - Professional Fees","130208088","07/03/2018","Looked After Children","Adoption and Residence Team & Allowances","R4400"
"Wolverhampton City Council","http://opendatacommunities.org/id/metropolitan-district-council/wolverhampton","711025","Alere Toxicology","0000575058","78.85","Services - Professional Fees","130207004","16/03/2018","Child Protection","Head of Service - CINCP","R4400"
"Wolverhampton City Council","http://opendatacommunities.org/id/metropolitan-district-council/wolverhampton","711037","Allergy Action","230218","285.00","Training Expenses","130208254","07/03/2018","Catering","School Meals Statutory standards","R1650"
"Wolverhampton City Council","http://opendatacommunities.org/id/metropolitan-district-council/wolverhampton","711067","Wrixon Care","P16853620180316","1,028.40","Client Allowances","190437087","21/03/2018","Looked After Children","LAC Transitions Team","R6301"
"Wolverhampton City Council","http://opendatacommunities.org/id/metropolitan-district-council/wolverhampton","711070","DWF LLP","1925138","10,467.15","External Professional Fees","130209273","26/03/2018","-","GF - Interchange - Ph2 Train Station/MSCP/Metro Extension","C6002"
"Wolverhampton City Council","http://opendatacommunities.org/id/metropolitan-district-council/wolverhampton","711070","DWF LLP","1925138","-10,467.15","External Professional Fees","130209273","26/03/2018","-","GF - Interchange - Ph2 Train Station/MSCP/Metro Extension","C6002"
"Wolverhampton City Council","http://opendatacommunities.org/id/metropolitan-district-council/wolverhampton","711070","DWF LLP","1925138","10,487.15","External Professional Fees","130209273","26/03/2018","-","GF - Interchange - Ph2 Train Station/MSCP/Metro Extension","C6002"
"Wolverhampton City Council","http://opendatacommunities.org/id/metropolitan-district-council/wolverhampton","711070","DWF LLP","1925138","-20.00","External Professional Fees","130209273","26/03/2018","-","GF - Interchange - Ph2 Train Station/MSCP/Metro Extension","C6002"
"Wolverhampton City Council","http://opendatacommunities.org/id/metropolitan-district-council/wolverhampton","711074","Handicare","SIN562217","467.80","Equipment - Purchase","130205555","02/03/2018","Independent Living Service","Independent Living Service","R4000"
"Wolverhampton City Council","http://opendatacommunities.org/id/metropolitan-district-council/wolverhampton","711074","Handicare","SIN562218","467.80","Equipment - Purchase","130205752","02/03/2018","Independent Living Service","Independent Living Service","R4000"
"Wolverhampton City Council","http://opendatacommunities.org/id/metropolitan-district-council/wolverhampton","711076","Turbex Ltd","33231","315.00","Equipment - R & M","130205435","21/03/2018","Independent Living Service","Independent Living Service","R4003"
"Wolverhampton City Council","http://opendatacommunities.org/id/metropolitan-district-council/wolverhampton","711076","Turbex Ltd","33263","620.66","Equipment - R & M","130207325","14/03/2018","Independent Living Service","Independent Living Service","R4003"
"Wolverhampton City Council","http://opendatacommunities.org/id/metropolitan-district-council/wolverhampton","711076","Turbex Ltd","33263","25.00","Equipment - R & M","130207325","14/03/2018","Independent Living Service","Independent Living Service","R4003"
"Wolverhampton City Council","http://opendatacommunities.org/id/metropolitan-district-council/wolverhampton","711094","OTS","0000022416","1,499.60","Equipment - Purchase","130204250","02/03/2018","Independent Living Service","Independent Living Service","R4000"
"Wolverhampton City Council","http://opendatacommunities.org/id/metropolitan-district-council/wolverhampton","711094","OTS","0000022416","422.50","Equipment - Purchase","130204250","02/03/2018","Independent Living Service","Independent Living Service","R4000"
"Wolverhampton City Council","http://opendatacommunities.org/id/metropolitan-district-council/wolverhampton","711135","Hindley Contractors LTD","16/0825/DFG","5,410.00","Grants paid out","190440269","23/03/2018","-","Disabled Facilities Grants","C5000"
"Wolverhampton City Council","http://opendatacommunities.org/id/metropolitan-district-council/wolverhampton","711135","Hindley Contractors LTD","16/0545/DFG","4,572.13","Grants paid out","190430190","02/03/2018","-","Disabled Facilities Grants","C5000"
"Wolverhampton City Council","http://opendatacommunities.org/id/metropolitan-district-council/wolverhampton","711148","Tarmac Trading Limited","9037672797","376.78","Materials","130208431","21/03/2018","Highways Maintenance","Planned Highways Maintenance","R4007"
"Wolverhampton City Council","http://opendatacommunities.org/id/metropolitan-district-council/wolverhampton","711148","Tarmac Trading Limited","9037604409","54.83","Materials","130206733","07/03/2018","Highways Maintenance","Planned Highways Maintenance","R4007"
"Wolverhampton City Council","http://opendatacommunities.org/id/metropolitan-district-council/wolverhampton","711148","Tarmac Trading Limited","9037596917","109.65","Materials","130206573","07/03/2018","Highways Maintenance","Planned Highways Maintenance","R4007"
"Wolverhampton City Council","http://opendatacommunities.org/id/metropolitan-district-council/wolverhampton","711209","SJC Castle Ltd","FINEWS047","70.60","Books","130210100","21/03/2018","Strategic Organisation Development","Finchfield Library","R4309"
"Wolverhampton City Council","http://opendatacommunities.org/id/metropolitan-district-council/wolverhampton","711387","GTG Training Limited","543905","110.00","Hospitality","130209276","14/03/2018","Standards and Vulnerable Pupils","School Standards Training & Safeguarding","R4612"
"Wolverhampton City Council","http://opendatacommunities.org/id/metropolitan-district-council/wolverhampton","711387","GTG Training Limited","975263","1,463.34","Training Expenses","130201478","07/03/2018","Skills","IMPACT","R1650"
"Wolverhampton City Council","http://opendatacommunities.org/id/metropolitan-district-council/wolverhampton","711387","GTG Training Limited","975263","-1,463.34","Training Expenses","130201478","07/03/2018","Skills","IMPACT","R1650"
"Wolverhampton City Council","http://opendatacommunities.org/id/metropolitan-district-council/wolverhampton","711387","GTG Training Limited","975263","1,293.34","Training Expenses","130201478","07/03/2018","Skills","IMPACT","R1650"
"Wolverhampton City Council","http://opendatacommunities.org/id/metropolitan-district-council/wolverhampton","711387","GTG Training Limited","975263","170.00","Training Expenses","130201478","07/03/2018","Skills","IMPACT","R1650"
"Wolverhampton City Council","http://opendatacommunities.org/id/metropolitan-district-council/wolverhampton","711387","GTG Training Limited","544220","55.80","Hospitality","130209280","14/03/2018","Standards and Vulnerable Pupils","LEP-Leadership & Management Programme","R4612"
"Wolverhampton City Council","http://opendatacommunities.org/id/metropolitan-district-council/wolverhampton","711387","GTG Training Limited","543904","110.00","Hospitality","130209275","14/03/2018","Standards and Vulnerable Pupils","New Arrivals","R4612"
"Wolverhampton City Council","http://opendatacommunities.org/id/metropolitan-district-council/wolverhampton","711387","GTG Training Limited","975264","245.83","Training Expenses","130208913","23/03/2018","Skills","IMPACT","R1650"
"Wolverhampton City Council","http://opendatacommunities.org/id/metropolitan-district-council/wolverhampton","711387","GTG Training Limited","975264","102.00","Training Expenses","130208913","23/03/2018","Skills","IMPACT","R1650"
"Wolverhampton City Council","http://opendatacommunities.org/id/metropolitan-district-council/wolverhampton","711387","GTG Training Limited","975264","347.83","Training Expenses","130208913","23/03/2018","Skills","IMPACT","R1650"
"Wolverhampton City Council","http://opendatacommunities.org/id/metropolitan-district-council/wolverhampton","711387","GTG Training Limited","975264","-347.83","Training Expenses","130208913","23/03/2018","Skills","IMPACT","R1650"
"Wolverhampton City Council","http://opendatacommunities.org/id/metropolitan-district-council/wolverhampton","711387","GTG Training Limited","543903","350.00","Hospitality","130209274","14/03/2018","Standards and Vulnerable Pupils","LEP-Leadership & Management Programme","R4612"
"Wolverhampton City Council","http://opendatacommunities.org/id/metropolitan-district-council/wolverhampton","711387","GTG Training Limited","543907","110.00","Hospitality","130209278","14/03/2018","Standards and Vulnerable Pupils","LEP-Leadership & Management Programme","R4612"
"Wolverhampton City Council","http://opendatacommunities.org/id/metropolitan-district-council/wolverhampton","711387","GTG Training Limited","544060","350.00","Room Hire","130207026","09/03/2018","Healthier Places Service","Healthy Schools Team","R2201"
"Wolverhampton City Council","http://opendatacommunities.org/id/metropolitan-district-council/wolverhampton","711387","GTG Training Limited","544058","385.00","Hospitality","130209279","14/03/2018","Standards and Vulnerable Pupils","LEP-Leadership & Management Programme","R4612"
"Wolverhampton City Council","http://opendatacommunities.org/id/metropolitan-district-council/wolverhampton","711387","GTG Training Limited","543906","330.00","Hospitality","130209277","14/03/2018","Standards and Vulnerable Pupils","LEP-Leadership & Management Programme","R4612"
"Wolverhampton City Council","http://opendatacommunities.org/id/metropolitan-district-council/wolverhampton","711401","Aldersley High School Fund","P16808120180313","650.00","Grant Payments to Individuals","190435204","14/03/2018","Looked After Children","LAC Education Team (LACE)","R6402"
"Wolverhampton City Council","http://opendatacommunities.org/id/metropolitan-district-council/wolverhampton","711401","Aldersley High School Fund","P16808120180313","650.00","Grant Payments to Individuals","190435204","14/03/2018","Looked After Children","LAC Education Team (LACE)","R6402"
"Wolverhampton City Council","http://opendatacommunities.org/id/metropolitan-district-council/wolverhampton","711401","Aldersley High School Fund","P16808120180313","650.00","Grant Payments to Individuals","190435204","14/03/2018","Looked After Children","LAC Education Team (LACE)","R6402"
"Wolverhampton City Council","http://opendatacommunities.org/id/metropolitan-district-council/wolverhampton","711401","Aldersley High School Fund","P16808120180313","650.00","Grant Payments to Individuals","190435204","14/03/2018","Looked After Children","LAC Education Team (LACE)","R6402"
"Wolverhampton City Council","http://opendatacommunities.org/id/metropolitan-district-council/wolverhampton","711456","AVR Group Ltd","77940","2,210.82","Computing - Purchase of Software","130208914","26/03/2018","Audit Services","Health & Safety","R4531"
"Wolverhampton City Council","http://opendatacommunities.org/id/metropolitan-district-council/wolverhampton","711563","Mandy  Dalton Marsh","TFT Spring 2018 Inst 2","377.28","TPP - Private Nursery Education Funding","190439893","23/03/2018","Early Years","Early Years Entitlement Funding for Disadvantaged 2 Year Olds","R5035"
"Wolverhampton City Council","http://opendatacommunities.org/id/metropolitan-district-council/wolverhampton","711563","Mandy  Dalton Marsh","NEF Spring 2018 INST 2","1,774.80","TPP - Private Nursery Education Funding","190439901","23/03/2018","Early Years","Early Years Universal Entitlement for 3 and 4 Year Olds","R5035"
"Wolverhampton City Council","http://opendatacommunities.org/id/metropolitan-district-council/wolverhampton","711609","Wolverhampton Racecourse","02/03/2018 blue form","360.00","Events","130207927","07/03/2018","Visitor Economy","Midland Box Office","R9216"
"Wolverhampton City Council","http://opendatacommunities.org/id/metropolitan-district-council/wolverhampton","711692","Central Manchester University Hospitals","6210115636 M9 GUM 17-18","132.00","TPP - Public Health Contracts","190441099","26/03/2018","Contracts","Sexual Health","R5060"
"Wolverhampton City Council","http://opendatacommunities.org/id/metropolitan-district-council/wolverhampton","711772","Old Hall School","OHS-47","4,238.04","TPP - Alternative Provision of Education","130207896","07/03/2018","Standards and Vulnerable Pupils","SEN Education OOC","R5037"
"Wolverhampton City Council","http://opendatacommunities.org/id/metropolitan-district-council/wolverhampton","711772","Old Hall School","OHS-49","3,496.44","TPP - Alternative Provision of Education","130207898","07/03/2018","Standards and Vulnerable Pupils","SEN Education OOC","R5037"
"Wolverhampton City Council","http://opendatacommunities.org/id/metropolitan-district-council/wolverhampton","711772","Old Hall School","P16852020180316","600.00","Grant Payments to Individuals","190437072","21/03/2018","Looked After Children","LAC Education Team (LACE)","R6402"
"Wolverhampton City Council","http://opendatacommunities.org/id/metropolitan-district-council/wolverhampton","711772","Old Hall School","P16852020180316","650.00","Grant Payments to Individuals","190437072","21/03/2018","Looked After Children","LAC Education Team (LACE)","R6402"
"Wolverhampton City Council","http://opendatacommunities.org/id/metropolitan-district-council/wolverhampton","711772","Old Hall School","P16852020180316","650.00","Grant Payments to Individuals","190437072","21/03/2018","Looked After Children","LAC Education Team (LACE)","R6402"
"Wolverhampton City Council","http://opendatacommunities.org/id/metropolitan-district-council/wolverhampton","711772","Old Hall School","P16852020180316","650.00","Grant Payments to Individuals","190437072","21/03/2018","Looked After Children","LAC Education Team (LACE)","R6402"
"Wolverhampton City Council","http://opendatacommunities.org/id/metropolitan-district-council/wolverhampton","711772","Old Hall School","OHS-48","3,496.44","TPP - Alternative Provision of Education","130207897","07/03/2018","Standards and Vulnerable Pupils","SEN Education OOC","R5037"
"Wolverhampton City Council","http://opendatacommunities.org/id/metropolitan-district-council/wolverhampton","711785","Progress Adult Living Services","311620180308","812.00","TPP - Home Care","190433802","09/03/2018","Learning Disabilities Care Purchasing","LD Care Purchasing (Spot Placements)","R5420"
"Wolverhampton City Council","http://opendatacommunities.org/id/metropolitan-district-council/wolverhampton","711785","Progress Adult Living Services","311620180308","870.00","TPP - Home Care","190433802","09/03/2018","Learning Disabilities Care Purchasing","LD Care Purchasing (Spot Placements)","R5420"
"Wolverhampton City Council","http://opendatacommunities.org/id/metropolitan-district-council/wolverhampton","711785","Progress Adult Living Services","3115","3,004.20","TPP - Short Breaks","130208915","26/03/2018","Child Protection","Childrens with Disabilities Team","R5500"
"Wolverhampton City Council","http://opendatacommunities.org/id/metropolitan-district-council/wolverhampton","711785","Progress Adult Living Services","P16852820180316","207.00","TPP - Short Breaks","190437080","21/03/2018","Child Protection","Childrens with Disabilities Team","R5500"
"Wolverhampton City Council","http://opendatacommunities.org/id/metropolitan-district-council/wolverhampton","711785","Progress Adult Living Services","P16852820180316","132.00","TPP - Short Breaks","190437080","21/03/2018","Child Protection","Childrens with Disabilities Team","R5500"
"Wolverhampton City Council","http://opendatacommunities.org/id/metropolitan-district-council/wolverhampton","711785","Progress Adult Living Services","P16724520180305","198.00","TPP - Short Breaks","190431945","07/03/2018","Child Protection","Childrens with Disabilities Team","R5500"
"Wolverhampton City Council","http://opendatacommunities.org/id/metropolitan-district-council/wolverhampton","711785","Progress Adult Living Services","P16724520180305","132.00","TPP - Short Breaks","190431945","07/03/2018","Child Protection","Childrens with Disabilities Team","R5500"
"Wolverhampton City Council","http://opendatacommunities.org/id/metropolitan-district-council/wolverhampton","711785","Progress Adult Living Services","P16724520180305","334.13","TPP - Short Breaks","190431945","07/03/2018","Child Protection","Childrens with Disabilities Team","R5500"
"Wolverhampton City Council","http://opendatacommunities.org/id/metropolitan-district-council/wolverhampton","711785","Progress Adult Living Services","P16724520180305","99.00","TPP - Short Breaks","190431945","07/03/2018","Child Protection","Childrens with Disabilities Team","R5500"
"Wolverhampton City Council","http://opendatacommunities.org/id/metropolitan-district-council/wolverhampton","711785","Progress Adult Living Services","P16724520180305","160.88","TPP - Short Breaks","190431945","07/03/2018","Child Protection","Childrens with Disabilities Team","R5500"
"Wolverhampton City Council","http://opendatacommunities.org/id/metropolitan-district-council/wolverhampton","711785","Progress Adult Living Services","P16724520180305","148.50","TPP - Short Breaks","190431945","07/03/2018","Child Protection","Childrens with Disabilities Team","R5500"
"Wolverhampton City Council","http://opendatacommunities.org/id/metropolitan-district-council/wolverhampton","711785","Progress Adult Living Services","P16724520180305","660.00","TPP - Short Breaks","190431945","07/03/2018","Child Protection","Childrens with Disabilities Team","R5500"
"Wolverhampton City Council","http://opendatacommunities.org/id/metropolitan-district-council/wolverhampton","711785","Progress Adult Living Services","P16724520180305","132.00","TPP - Short Breaks","190431945","07/03/2018","Child Protection","Childrens with Disabilities Team","R5500"
"Wolverhampton City Council","http://opendatacommunities.org/id/metropolitan-district-council/wolverhampton","711785","Progress Adult Living Services","P16724520180305","66.00","TPP - Short Breaks","190431945","07/03/2018","Child Protection","Childrens with Disabilities Team","R5500"
"Wolverhampton City Council","http://opendatacommunities.org/id/metropolitan-district-council/wolverhampton","711785","Progress Adult Living Services","P16724520180305","156.75","TPP - Short Breaks","190431945","07/03/2018","Child Protection","Childrens with Disabilities Team","R5500"
"Wolverhampton City Council","http://opendatacommunities.org/id/metropolitan-district-council/wolverhampton","711785","Progress Adult Living Services","P16724520180305","189.75","TPP - Short Breaks","190431945","07/03/2018","Child Protection","Childrens with Disabilities Team","R5500"
"Wolverhampton City Council","http://opendatacommunities.org/id/metropolitan-district-council/wolverhampton","711785","Progress Adult Living Services","P16724520180305","66.00","TPP - Short Breaks","190431945","07/03/2018","Child Protection","Childrens with Disabilities Team","R5500"
"Wolverhampton City Council","http://opendatacommunities.org/id/metropolitan-district-council/wolverhampton","711785","Progress Adult Living Services","P16724520180305","66.00","TPP - Short Breaks","190431945","07/03/2018","Child Protection","Childrens with Disabilities Team","R5500"
"Wolverhampton City Council","http://opendatacommunities.org/id/metropolitan-district-council/wolverhampton","711785","Progress Adult Living Services","P16724520180305","225.50","TPP - Short Breaks","190431945","07/03/2018","Child Protection","Childrens with Disabilities Team","R5500"
"Wolverhampton City Council","http://opendatacommunities.org/id/metropolitan-district-council/wolverhampton","711785","Progress Adult Living Services","P16724520180305","99.00","TPP - Short Breaks","190431945","07/03/2018","Child Protection","Childrens with Disabilities Team","R5500"
"Wolverhampton City Council","http://opendatacommunities.org/id/metropolitan-district-council/wolverhampton","711785","Progress Adult Living Services","P16724520180305","639.39","TPP - Short Breaks","190431945","07/03/2018","Child Protection","Childrens with Disabilities Team","R5500"
"Wolverhampton City Council","http://opendatacommunities.org/id/metropolitan-district-council/wolverhampton","711785","Progress Adult Living Services","P16724520180305","247.50","TPP - Short Breaks","190431945","07/03/2018","Child Protection","Childrens with Disabilities Team","R5500"
"Wolverhampton City Council","http://opendatacommunities.org/id/metropolitan-district-council/wolverhampton","711785","Progress Adult Living Services","P16724520180305","198.00","TPP - Short Breaks","190431945","07/03/2018","Child Protection","Childrens with Disabilities Team","R5500"
"Wolverhampton City Council","http://opendatacommunities.org/id/metropolitan-district-council/wolverhampton","711785","Progress Adult Living Services","P16724520180305","156.75","TPP - Short Breaks","190431945","07/03/2018","Child Protection","Childrens with Disabilities Team","R5500"
"Wolverhampton City Council","http://opendatacommunities.org/id/metropolitan-district-council/wolverhampton","711785","Progress Adult Living Services","P16724520180305","420.75","TPP - Short Breaks","190431945","07/03/2018","Child Protection","Childrens with Disabilities Team","R5500"
"Wolverhampton City Council","http://opendatacommunities.org/id/metropolitan-district-council/wolverhampton","711785","Progress Adult Living Services","P16724520180305","1,914.00","TPP - Short Breaks","190431945","07/03/2018","Child Protection","Childrens with Disabilities Team","R5500"
"Wolverhampton City Council","http://opendatacommunities.org/id/metropolitan-district-council/wolverhampton","711785","Progress Adult Living Services","P16724520180305","474.00","TPP - Short Breaks","190431945","07/03/2018","Child Protection","Childrens with Disabilities Team","R5500"
"Wolverhampton City Council","http://opendatacommunities.org/id/metropolitan-district-council/wolverhampton","711785","Progress Adult Living Services","P16724520180305","120.00","TPP - Residential Care - Short Term","190431945","07/03/2018","Child Protection","Childrens with Disabilities Team","R5401"
"Wolverhampton City Council","http://opendatacommunities.org/id/metropolitan-district-council/wolverhampton","711813","University Hospital of South Manchester","0000351571 GUM Dec 17","144.65","TPP - Public Health Contracts","190432111","07/03/2018","Contracts","Sexual Health","R5060"
"Wolverhampton City Council","http://opendatacommunities.org/id/metropolitan-district-council/wolverhampton","711821","DSM Demolition","ADO161338","127,788.35","Construction and Conversion","130208963","16/03/2018","-","Heath Town","C1100"
"Wolverhampton City Council","http://opendatacommunities.org/id/metropolitan-district-council/wolverhampton","711822","Greenleigh Care Ltd","P167673 01041820180312","1,604.00","TPP - Residential Care - Long Term","190434773","14/03/2018","Older People Care Purchasing","OP Care Purchasing (Spot Placements)","R5400"
"Wolverhampton City Council","http://opendatacommunities.org/id/metropolitan-district-council/wolverhampton","711822","Greenleigh Care Ltd","P167673 01041820180312","1,604.00","TPP - Residential Care - Long Term","190434773","14/03/2018","Older People Care Purchasing","OP Care Purchasing (Spot Placements)","R5400"
"Wolverhampton City Council","http://opendatacommunities.org/id/metropolitan-district-council/wolverhampton","711864","RTPI Conferences","9835","50.00","Training Expenses","130207899","23/03/2018","Human Resources","Centralised Training","R1650"
"Wolverhampton City Council","http://opendatacommunities.org/id/metropolitan-district-council/wolverhampton","711864","RTPI Conferences","9630","349.00","Training Expenses","130206237","16/03/2018","Human Resources","Centralised Training","R1650"
"Wolverhampton City Council","http://opendatacommunities.org/id/metropolitan-district-council/wolverhampton","711874","Nichola Tompkins","NEF Spring 2018 INST 2","306.00","TPP - Private Nursery Education Funding","190439901","23/03/2018","Early Years","Early Years Universal Entitlement for 3 and 4 Year Olds","R5035"
"Wolverhampton City Council","http://opendatacommunities.org/id/metropolitan-district-council/wolverhampton","711895","Nu-Weld Engineering Services Ltd","6064","41,623.50","Construction and Conversion","130207149","09/03/2018","-","Transport Structual Maintenance","C1100"
"Wolverhampton City Council","http://opendatacommunities.org/id/metropolitan-district-council/wolverhampton","711913","Interserve Fire Services Ltd","377003FS","436.40","Equipment - R & M","130209317","26/03/2018","Maintenance Programme","Centralised R&M","R4003"
"Wolverhampton City Council","http://opendatacommunities.org/id/metropolitan-district-council/wolverhampton","711913","Interserve Fire Services Ltd","376994FS","68.38","Equipment - R & M","130209308","26/03/2018","Maintenance Programme","Centralised R&M","R4003"
"Wolverhampton City Council","http://opendatacommunities.org/id/metropolitan-district-council/wolverhampton","711913","Interserve Fire Services Ltd","376989FS","146.91","Equipment - R & M","130209303","26/03/2018","Maintenance Programme","Centralised R&M","R4003"
"Wolverhampton City Council","http://opendatacommunities.org/id/metropolitan-district-council/wolverhampton","711913","Interserve Fire Services Ltd","376983FS","11.80","Equipment - R & M","130209881","26/03/2018","Maintenance Programme","Centralised R&M","R4003"
"Wolverhampton City Council","http://opendatacommunities.org/id/metropolitan-district-council/wolverhampton","711913","Interserve Fire Services Ltd","376990FS","50.00","Equipment - R & M","130209304","26/03/2018","Markets","Bilston Market and Licensed Operations","R4003"
"Wolverhampton City Council","http://opendatacommunities.org/id/metropolitan-district-council/wolverhampton","711913","Interserve Fire Services Ltd","376998FS","86.29","Equipment - R & M","130209312","26/03/2018","Facilities Management","Caretakers Community Centre","R4003"
"Wolverhampton City Council","http://opendatacommunities.org/id/metropolitan-district-council/wolverhampton","711913","Interserve Fire Services Ltd","376987FS","126.00","Equipment - R & M","130209301","26/03/2018","Maintenance Programme","Centralised R&M","R4003"
"Wolverhampton City Council","http://opendatacommunities.org/id/metropolitan-district-council/wolverhampton","711913","Interserve Fire Services Ltd","375848FS","375.00","Equipment - R & M","130209283","16/03/2018","Maintenance Programme","Centralised R&M","R4003"
"Wolverhampton City Council","http://opendatacommunities.org/id/metropolitan-district-council/wolverhampton","711913","Interserve Fire Services Ltd","375859FS","55.42","Equipment - R & M","130209293","16/03/2018","Schools","Pupil Referral Units - Braybrook Centre","R4003"
"Wolverhampton City Council","http://opendatacommunities.org/id/metropolitan-district-council/wolverhampton","711913","Interserve Fire Services Ltd","375858FS","940.87","Equipment - R & M","130209292","16/03/2018","Schools","Pupil Referral Units - Mid Point","R4003"
"Wolverhampton City Council","http://opendatacommunities.org/id/metropolitan-district-council/wolverhampton","711913","Interserve Fire Services Ltd","375860FS","50.00","Equipment - R & M","130209294","16/03/2018","Maintenance Programme","Centralised R&M","R4003"
"Wolverhampton City Council","http://opendatacommunities.org/id/metropolitan-district-council/wolverhampton","711913","Interserve Fire Services Ltd","377005FS","530.00","Equipment - R & M","130209073","26/03/2018","Maintenance Programme","Centralised R&M","R4003"
"Wolverhampton City Council","http://opendatacommunities.org/id/metropolitan-district-council/wolverhampton","711913","Interserve Fire Services Ltd","376984FS","50.00","Equipment - R & M","130209299","26/03/2018","Facilities Management","Caretakers Community Centre","R4003"
"Wolverhampton City Council","http://opendatacommunities.org/id/metropolitan-district-council/wolverhampton","711913","Interserve Fire Services Ltd","376988FS","405.21","Equipment - R & M","130209302","26/03/2018","Maintenance Programme","Centralised R&M","R4003"
"Wolverhampton City Council","http://opendatacommunities.org/id/metropolitan-district-council/wolverhampton","711913","Interserve Fire Services Ltd","377002FS","157.83","Equipment - R & M","130209316","26/03/2018","Maintenance Programme","Centralised R&M","R4003"
"Wolverhampton City Council","http://opendatacommunities.org/id/metropolitan-district-council/wolverhampton","711913","Interserve Fire Services Ltd","376992FS","48.65","Equipment - R & M","130209306","26/03/2018","Facilities Management","Hickman Avenue Depot","R4003"
"Wolverhampton City Council","http://opendatacommunities.org/id/metropolitan-district-council/wolverhampton","711913","Interserve Fire Services Ltd","377000FS","63.00","Equipment - R & M","130209314","26/03/2018","Facilities Management","Management of Vacant Properties","R4003"
"Wolverhampton City Council","http://opendatacommunities.org/id/metropolitan-district-council/wolverhampton","711913","Interserve Fire Services Ltd","376986FS","126.00","Equipment - R & M","130209300","26/03/2018","Maintenance Programme","Centralised R&M","R4003"
"Wolverhampton City Council","http://opendatacommunities.org/id/metropolitan-district-council/wolverhampton","711913","Interserve Fire Services Ltd","375863FS","89.18","Equipment - R & M","130209297","16/03/2018","Maintenance Programme","Centralised R&M","R4003"
"Wolverhampton City Council","http://opendatacommunities.org/id/metropolitan-district-council/wolverhampton","711913","Interserve Fire Services Ltd","375847FS","2,062.50","Equipment - R & M","130209282","16/03/2018","Maintenance Programme","Centralised R&M","R4003"
"Wolverhampton City Council","http://opendatacommunities.org/id/metropolitan-district-council/wolverhampton","711913","Interserve Fire Services Ltd","375855FS","134.30","Equipment - R & M","130209290","16/03/2018","Maintenance Programme","Centralised R&M","R4003"
"Wolverhampton City Council","http://opendatacommunities.org/id/metropolitan-district-council/wolverhampton","711913","Interserve Fire Services Ltd","375854FS","282.50","Equipment - R & M","130209289","16/03/2018","Maintenance Programme","Centralised R&M","R4003"
"Wolverhampton City Council","http://opendatacommunities.org/id/metropolitan-district-council/wolverhampton","711913","Interserve Fire Services Ltd","377001FS","50.00","Equipment - R & M","130209315","26/03/2018","Facilities Management","Victoria Square, Block 11","R4003"
"Wolverhampton City Council","http://opendatacommunities.org/id/metropolitan-district-council/wolverhampton","711913","Interserve Fire Services Ltd","905344FS","-134.24","Equipment - R & M","130185321","26/03/2018","Maintenance Programme","Centralised R&M","R4003"
"Wolverhampton City Council","http://opendatacommunities.org/id/metropolitan-district-council/wolverhampton","711913","Interserve Fire Services Ltd","377004FS","1,760.00","Equipment - R & M","130209318","26/03/2018","Maintenance Programme","Centralised R&M","R4003"
"Wolverhampton City Council","http://opendatacommunities.org/id/metropolitan-district-council/wolverhampton","711913","Interserve Fire Services Ltd","376999FS","157.83","Equipment - R & M","130209313","26/03/2018","Facilities Management","Magistrates","R4003"
"Wolverhampton City Council","http://opendatacommunities.org/id/metropolitan-district-council/wolverhampton","711913","Interserve Fire Services Ltd","377006FS","335.66","Equipment - R & M","130209319","26/03/2018","Maintenance Programme","Centralised R&M","R4003"
"Wolverhampton City Council","http://opendatacommunities.org/id/metropolitan-district-council/wolverhampton","711913","Interserve Fire Services Ltd","376971FS","73.73","Equipment - R & M","130209869","26/03/2018","Maintenance Programme","Centralised R&M","R4003"
"Wolverhampton City Council","http://opendatacommunities.org/id/metropolitan-district-council/wolverhampton","711913","Interserve Fire Services Ltd","376997FS","63.00","Equipment - R & M","130209311","26/03/2018","Facilities Management","Caretakers Community Centre","R4003"
"Wolverhampton City Council","http://opendatacommunities.org/id/metropolitan-district-council/wolverhampton","711913","Interserve Fire Services Ltd","375850FS","335.63","Equipment - R & M","130209285","16/03/2018","Maintenance Programme","Centralised R&M","R4003"
"Wolverhampton City Council","http://opendatacommunities.org/id/metropolitan-district-council/wolverhampton","711913","Interserve Fire Services Ltd","375846FS","2,397.50","Equipment - R & M","130209281","16/03/2018","Maintenance Programme","Centralised R&M","R4003"
"Wolverhampton City Council","http://opendatacommunities.org/id/metropolitan-district-council/wolverhampton","711913","Interserve Fire Services Ltd","375861FS","93.64","Equipment - R & M","130209295","16/03/2018","Maintenance Programme","Centralised R&M","R4003"
"Wolverhampton City Council","http://opendatacommunities.org/id/metropolitan-district-council/wolverhampton","711913","Interserve Fire Services Ltd","375862FS","63.00","Equipment - R & M","130209296","16/03/2018","Facilities Management","Culwell Street Depot","R4003"
"Wolverhampton City Council","http://opendatacommunities.org/id/metropolitan-district-council/wolverhampton","711913","Interserve Fire Services Ltd","376993FS","50.00","Equipment - R & M","130209307","26/03/2018","Maintenance Programme","Centralised R&M","R4003"
"Wolverhampton City Council","http://opendatacommunities.org/id/metropolitan-district-council/wolverhampton","711913","Interserve Fire Services Ltd","376985FS","68.38","Equipment - R & M","130209882","26/03/2018","Maintenance Programme","Centralised R&M","R4003"
"Wolverhampton City Council","http://opendatacommunities.org/id/metropolitan-district-council/wolverhampton","711913","Interserve Fire Services Ltd","376973FS","163.25","Equipment - R & M","130209871","26/03/2018","Maintenance Programme","Centralised R&M","R4003"
"Wolverhampton City Council","http://opendatacommunities.org/id/metropolitan-district-council/wolverhampton","711913","Interserve Fire Services Ltd","376996FS","1,773.45","Equipment - R & M","130209310","26/03/2018","Facilities Management","Civic Centre","R4003"
"Wolverhampton City Council","http://opendatacommunities.org/id/metropolitan-district-council/wolverhampton","711913","Interserve Fire Services Ltd","376991FS","126.00","Equipment - R & M","130209305","26/03/2018","Maintenance Programme","Centralised R&M","R4003"
"Wolverhampton City Council","http://opendatacommunities.org/id/metropolitan-district-council/wolverhampton","711913","Interserve Fire Services Ltd","376995FS","100.25","Equipment - R & M","130209309","26/03/2018","Maintenance Programme","Centralised R&M","R4003"
"Wolverhampton City Council","http://opendatacommunities.org/id/metropolitan-district-council/wolverhampton","711913","Interserve Fire Services Ltd","905343FS","-134.24","Equipment - R & M","130185320","26/03/2018","Maintenance Programme","Centralised R&M","R4003"
"Wolverhampton City Council","http://opendatacommunities.org/id/metropolitan-district-council/wolverhampton","711913","Interserve Fire Services Ltd","375864FS","50.00","Equipment - R & M","130209298","16/03/2018","Facilities Management","Culwell Street Depot","R4003"
"Wolverhampton City Council","http://opendatacommunities.org/id/metropolitan-district-council/wolverhampton","711913","Interserve Fire Services Ltd","375849FS","335.66","Equipment - R & M","130209284","16/03/2018","Maintenance Programme","Centralised R&M","R4003"
"Wolverhampton City Council","http://opendatacommunities.org/id/metropolitan-district-council/wolverhampton","711913","Interserve Fire Services Ltd","375853FS","134.24","Equipment - R & M","130209288","16/03/2018","Maintenance Programme","Centralised R&M","R4003"
"Wolverhampton City Council","http://opendatacommunities.org/id/metropolitan-district-council/wolverhampton","711913","Interserve Fire Services Ltd","375852FS","67.15","Equipment - R & M","130209287","16/03/2018","Maintenance Programme","Centralised R&M","R4003"
"Wolverhampton City Council","http://opendatacommunities.org/id/metropolitan-district-council/wolverhampton","711931","Nishkam Nursery School","TFT Spring 2018 Inst 2","9,856.44","TPP - Private Nursery Education Funding","190439893","23/03/2018","Early Years","Early Years Entitlement Funding for Disadvantaged 2 Year Olds","R5035"
"Wolverhampton City Council","http://opendatacommunities.org/id/metropolitan-district-council/wolverhampton","711931","Nishkam Nursery School","NEF Spring 2018 INST 2","40,619.83","TPP - Private Nursery Education Funding","190439901","23/03/2018","Early Years","Early Years Universal Entitlement for 3 and 4 Year Olds","R5035"
"Wolverhampton City Council","http://opendatacommunities.org/id/metropolitan-district-council/wolverhampton","711940","The Edge Systems Ltd","84683","283.00","Equipment - Purchase","130206574","14/03/2018","Licensing","Licensing - Licensing Act 2003","R4000"
"Wolverhampton City Council","http://opendatacommunities.org/id/metropolitan-district-council/wolverhampton","711940","The Edge Systems Ltd","84683","10.50","Comms - Postage","130206574","14/03/2018","Licensing","Licensing - Licensing Act 2003","R4503"
"Wolverhampton City Council","http://opendatacommunities.org/id/metropolitan-district-council/wolverhampton","711948","Ms PK Moore","44","450.00","No Recourse to Public Funds","130206575","09/03/2018","Child Protection","CIN/CP Social Work Unit - Area 4","R6314"
"Wolverhampton City Council","http://opendatacommunities.org/id/metropolitan-district-council/wolverhampton","711949","NCA - National Crime Agency","SI\011892","199.00","Training Expenses","130209884","21/03/2018","Looked After Children","Fostering Team & Allowances","R1650"
"Wolverhampton City Council","http://opendatacommunities.org/id/metropolitan-district-council/wolverhampton","712005","YMCA Black Country Group","P16815720180313","90.00","Client Allowances","190435209","14/03/2018","Looked After Children","LAC Transitions Team","R6301"
"Wolverhampton City Council","http://opendatacommunities.org/id/metropolitan-district-council/wolverhampton","712005","YMCA Black Country Group","P16815720180313","90.00","Client Allowances","190435209","14/03/2018","Looked After Children","LAC Transitions Team","R6301"
"Wolverhampton City Council","http://opendatacommunities.org/id/metropolitan-district-council/wolverhampton","712005","YMCA Black Country Group","11870","300.00","TPP - Accommodation","130209322","16/03/2018","Child Protection","CIN/CP Social Work Unit - Area 5","R5603"
"Wolverhampton City Council","http://opendatacommunities.org/id/metropolitan-district-council/wolverhampton","712005","YMCA Black Country Group","P16906320180323","90.00","Client Allowances","190441089","26/03/2018","Looked After Children","LAC Transitions Team","R6301"
"Wolverhampton City Council","http://opendatacommunities.org/id/metropolitan-district-council/wolverhampton","712005","YMCA Black Country Group","P16906320180323","90.00","Client Allowances","190441089","26/03/2018","Looked After Children","LAC Transitions Team","R6301"
"Wolverhampton City Council","http://opendatacommunities.org/id/metropolitan-district-council/wolverhampton","712005","YMCA Black Country Group","P16852620180316","90.00","Client Allowances","190437078","21/03/2018","Looked After Children","LAC Transitions Team","R6301"
"Wolverhampton City Council","http://opendatacommunities.org/id/metropolitan-district-council/wolverhampton","712005","YMCA Black Country Group","P16852620180316","90.00","Client Allowances","190437078","21/03/2018","Looked After Children","LAC Transitions Team","R6301"
"Wolverhampton City Council","http://opendatacommunities.org/id/metropolitan-district-council/wolverhampton","712005","YMCA Black Country Group","P16724320180305","90.00","Client Allowances","190431943","07/03/2018","Looked After Children","LAC Transitions Team","R6301"
"Wolverhampton City Council","http://opendatacommunities.org/id/metropolitan-district-council/wolverhampton","712005","YMCA Black Country Group","P16724320180305","90.00","Client Allowances","190431943","07/03/2018","Looked After Children","LAC Transitions Team","R6301"
"Wolverhampton City Council","http://opendatacommunities.org/id/metropolitan-district-council/wolverhampton","712005","YMCA Black Country Group","11524","560.00","TPP - Accommodation","130209320","16/03/2018","Child Protection","CIN/CP Social Work Unit - Area 5","R5603"
"Wolverhampton City Council","http://opendatacommunities.org/id/metropolitan-district-council/wolverhampton","712032","Guide Dogs for the Blind Association","20003789","1,698.00","TPP - Social Care Support Services","130208433","26/03/2018","Standards and Vulnerable Pupils","SEN Sensory Inclusion","R5501"
"Wolverhampton City Council","http://opendatacommunities.org/id/metropolitan-district-council/wolverhampton","712032","Guide Dogs for the Blind Association","20003788","1,056.72","TPP - Social Care Support Services","130208432","26/03/2018","Standards and Vulnerable Pupils","SEN Sensory Inclusion","R5501"
"Wolverhampton City Council","http://opendatacommunities.org/id/metropolitan-district-council/wolverhampton","712032","Guide Dogs for the Blind Association","20003744","1,704.39","TPP - Social Care Support Services","130207588","21/03/2018","Standards and Vulnerable Pupils","SEN Sensory Inclusion","R5501"
"Wolverhampton City Council","http://opendatacommunities.org/id/metropolitan-district-council/wolverhampton","712073","Wednesfield Magazine","2548","270.00","Marketing \ Non-staff advertising","130209885","21/03/2018","Housing","Wholly Owned Company - Operations","R4317"
"Wolverhampton City Council","http://opendatacommunities.org/id/metropolitan-district-council/wolverhampton","712129","Carol Davies","130","625.00","Training Expenses","130210360","23/03/2018","Safeguarding","Safeguarding Partnership Board","R1650"
"Wolverhampton City Council","http://opendatacommunities.org/id/metropolitan-district-council/wolverhampton","712129","Carol Davies","127","189.54","Services - Professional Fees","130208434","26/03/2018","Safeguarding","Safeguarding Board - Childrens","R4400"
"Wolverhampton City Council","http://opendatacommunities.org/id/metropolitan-district-council/wolverhampton","712155","Stone�s Throw Media","INV-2358","2,700.00","Services - Consultants","130207731","07/03/2018","Headstart","Headstart - Learning Technologies Team","R4404"
"Wolverhampton City Council","http://opendatacommunities.org/id/metropolitan-district-council/wolverhampton","712171","Robert Conway","406/18","150.00","Services - Professional Fees","130206265","09/03/2018","Visitor Economy","Art Galleries - Schools Art SLA Service","R4400"
"Wolverhampton City Council","http://opendatacommunities.org/id/metropolitan-district-council/wolverhampton","712171","Robert Conway","411/18","175.00","Services - Professional Fees","130208255","26/03/2018","Visitor Economy","Art Galleries - Schools Art SLA Service","R4400"
"Wolverhampton City Council","http://opendatacommunities.org/id/metropolitan-district-council/wolverhampton","712242","Panick Keys","2336","120.00","Equipment - Purchase","190436998","21/03/2018","Fleet Services","Fleet Management","R4000"
"Wolverhampton City Council","http://opendatacommunities.org/id/metropolitan-district-council/wolverhampton","712279","St Helens & Knowsley Hospitals NHS Trust","16772245 GUM Q3 17-18","138.00","TPP - Public Health Contracts","190432105","07/03/2018","Contracts","Sexual Health","R5060"
"Wolverhampton City Council","http://opendatacommunities.org/id/metropolitan-district-council/wolverhampton","712280","Libran Property Management","P16906120180323","484.64","Client Allowances","190441087","26/03/2018","Looked After Children","Looked After Team 2","R6301"
"Wolverhampton City Council","http://opendatacommunities.org/id/metropolitan-district-council/wolverhampton","712283","Royal Berkshire NHS Foundation Trust","492652 GUM Jan 18","131.00","TPP - Public Health Contracts","190432107","07/03/2018","Contracts","Sexual Health","R5060"
"Wolverhampton City Council","http://opendatacommunities.org/id/metropolitan-district-council/wolverhampton","712287","Modern Mindset Ltd","2018026","3,000.00","Computing - Licences","130207732","07/03/2018","Governance Services","Scrutiny","R4535"
"Wolverhampton City Council","http://opendatacommunities.org/id/metropolitan-district-council/wolverhampton","712287","Modern Mindset Ltd","2018027","3,000.00","Computing - Licences","130208568","14/03/2018","Governance Services","Scrutiny","R4535"
"Wolverhampton City Council","http://opendatacommunities.org/id/metropolitan-district-council/wolverhampton","712303","Grand Station Conference & Events Venue Wolverhampton","10505","2,093.50","Room Hire","130207326","09/03/2018","Governance Services","Democratic Support","R2201"
"Wolverhampton City Council","http://opendatacommunities.org/id/metropolitan-district-council/wolverhampton","712303","Grand Station Conference & Events Venue Wolverhampton","10505","-2,093.50","Room Hire","130207326","09/03/2018","Governance Services","Democratic Support","R2201"
"Wolverhampton City Council","http://opendatacommunities.org/id/metropolitan-district-council/wolverhampton","712303","Grand Station Conference & Events Venue Wolverhampton","10505","2,093.50","Room Hire","130207326","09/03/2018","Governance Services","Democratic Support","R2201"
"Wolverhampton City Council","http://opendatacommunities.org/id/metropolitan-district-council/wolverhampton","712303","Grand Station Conference & Events Venue Wolverhampton","10503","245.00","Room Hire","130206578","09/03/2018","Human Resources","Workforce Development","R2201"
"Wolverhampton City Council","http://opendatacommunities.org/id/metropolitan-district-council/wolverhampton","712303","Grand Station Conference & Events Venue Wolverhampton","10503","315.00","Room Hire","130206578","09/03/2018","Human Resources","Workforce Development","R2201"
"Wolverhampton City Council","http://opendatacommunities.org/id/metropolitan-district-council/wolverhampton","712303","Grand Station Conference & Events Venue Wolverhampton","10503","300.00","Catering","130206578","09/03/2018","Human Resources","Workforce Development","R4100"
"Wolverhampton City Council","http://opendatacommunities.org/id/metropolitan-district-council/wolverhampton","712314","June Knight","NEF Spring 2018 INST 2","918.00","TPP - Private Nursery Education Funding","190439901","23/03/2018","Early Years","Early Years Universal Entitlement for 3 and 4 Year Olds","R5035"
"Wolverhampton City Council","http://opendatacommunities.org/id/metropolitan-district-council/wolverhampton","712356","Finning (UK) Ltd","PINV8432040","81.92","Equipment - Purchase","190439667","23/03/2018","Fleet Services","Fleet Management","R4000"
"Wolverhampton City Council","http://opendatacommunities.org/id/metropolitan-district-council/wolverhampton","712356","Finning (UK) Ltd","CTIN06535735","125.58","Services - Professional Fees","190440594","23/03/2018","Fleet Services","Fleet Management","R4400"
"Wolverhampton City Council","http://opendatacommunities.org/id/metropolitan-district-council/wolverhampton","712372","Wider Learning","WL0256","16,380.00","Services - Professional Fees","130208090","07/03/2018","Headstart","Headstart - Young People Engagement","R4400"
"Wolverhampton City Council","http://opendatacommunities.org/id/metropolitan-district-council/wolverhampton","712372","Wider Learning","WL0262","4,475.00","Services - Professional Fees","130209324","14/03/2018","Headstart","Headstart Phase 3","R4400"
"Wolverhampton City Council","http://opendatacommunities.org/id/metropolitan-district-council/wolverhampton","712372","Wider Learning","WL0259","5,215.00","Services - Consultants","130208437","07/03/2018","Headstart","Headstart - Learning Technologies Team","R4404"
"Wolverhampton City Council","http://opendatacommunities.org/id/metropolitan-district-council/wolverhampton","712372","Wider Learning","WL0255","21,280.00","Services - Professional Fees","130208089","07/03/2018","Headstart","Headstart - Young People Engagement","R4400"
"Wolverhampton City Council","http://opendatacommunities.org/id/metropolitan-district-council/wolverhampton","712372","Wider Learning","WL0260","5,600.00","Services - Professional Fees","130210798","23/03/2018","Headstart","Headstart - Learning Technologies Team","R4400"
"Wolverhampton City Council","http://opendatacommunities.org/id/metropolitan-district-council/wolverhampton","712372","Wider Learning","WL0261","2,700.00","Services - Professional Fees","130209323","14/03/2018","Headstart","Headstart - Young People Engagement","R4400"
"Wolverhampton City Council","http://opendatacommunities.org/id/metropolitan-district-council/wolverhampton","712372","Wider Learning","WL0257","9,495.00","Services - Consultants","130208436","07/03/2018","Headstart","Headstart - Learning Technologies Team","R4404"
"Wolverhampton City Council","http://opendatacommunities.org/id/metropolitan-district-council/wolverhampton","712372","Wider Learning","WL0251","8,285.00","Services - Consultants","130208435","07/03/2018","Headstart","Headstart - Learning Technologies Team","R4404"
"Wolverhampton City Council","http://opendatacommunities.org/id/metropolitan-district-council/wolverhampton","712385","Rebecca Critchlow","NEF Spring 2018 INST 2","2,169.67","TPP - Private Nursery Education Funding","190439901","23/03/2018","Early Years","Early Years Universal Entitlement for 3 and 4 Year Olds","R5035"
"Wolverhampton City Council","http://opendatacommunities.org/id/metropolitan-district-council/wolverhampton","712385","Rebecca Critchlow","TFT Spring 2018 Inst 2","377.28","TPP - Private Nursery Education Funding","190439893","23/03/2018","Early Years","Early Years Entitlement Funding for Disadvantaged 2 Year Olds","R5035"
"Wolverhampton City Council","http://opendatacommunities.org/id/metropolitan-district-council/wolverhampton","712391","Cary�s Childcare","NEF Spring 2018 INST 2","1,886.00","TPP - Private Nursery Education Funding","190439901","23/03/2018","Early Years","Early Years Universal Entitlement for 3 and 4 Year Olds","R5035"
"Wolverhampton City Council","http://opendatacommunities.org/id/metropolitan-district-council/wolverhampton","712471","Nigel Frank International Ltd","432012334","9,940.00","Agency Staff","130208302","26/03/2018","ICTS","Strategic ICTS (ICT Service Budget)","R1100"
"Wolverhampton City Council","http://opendatacommunities.org/id/metropolitan-district-council/wolverhampton","712481","Frontline Staffing Ltd","4223146","1,332.00","Agency Staff","130205557","07/03/2018","Looked After Children","Looked After Team 1","R1100"
"Wolverhampton City Council","http://opendatacommunities.org/id/metropolitan-district-council/wolverhampton","712481","Frontline Staffing Ltd","4213901","1,332.00","Agency Staff","130204625","07/03/2018","Looked After Children","Looked After Team 1","R1100"
"Wolverhampton City Council","http://opendatacommunities.org/id/metropolitan-district-council/wolverhampton","712481","Frontline Staffing Ltd","4213902","16.20","Agency Staff","130204626","07/03/2018","Looked After Children","Looked After Team 1","R1100"
"Wolverhampton City Council","http://opendatacommunities.org/id/metropolitan-district-council/wolverhampton","712481","Frontline Staffing Ltd","4223147","34.65","Agency Staff","130205558","07/03/2018","Looked After Children","Looked After Team 1","R1100"
"Wolverhampton City Council","http://opendatacommunities.org/id/metropolitan-district-council/wolverhampton","712502","Granart Limited","8863","2,110.00","Materials for resale","130208917","14/03/2018","Bereavement Services","Cemeteries","R4008"
"Wolverhampton City Council","http://opendatacommunities.org/id/metropolitan-district-council/wolverhampton","712502","Granart Limited","8887","60.00","Materials for resale","130208918","14/03/2018","Bereavement Services","Cemeteries","R4008"
"Wolverhampton City Council","http://opendatacommunities.org/id/metropolitan-district-council/wolverhampton","712530","Lift Truck Services Limited","150531","280.00","Hire of Vehicles","190435549","16/03/2018","Fleet Services","Fleet Management","R3200"
"Wolverhampton City Council","http://opendatacommunities.org/id/metropolitan-district-council/wolverhampton","712561","Villiers Primary School","EYPP Spring 2018","763.20","TPP - Private Nursery Education Funding","190441753","26/03/2018","Early Years","Early Years Pupil Premium","R5035"
"Wolverhampton City Council","http://opendatacommunities.org/id/metropolitan-district-council/wolverhampton","712571","Hillcrest Children�s Services (2) Ltd t/a Options BESD (1) Ltd","P16852020180316","650.00","Grant Payments to Individuals","190437072","21/03/2018","Looked After Children","LAC Education Team (LACE)","R6402"
"Wolverhampton City Council","http://opendatacommunities.org/id/metropolitan-district-council/wolverhampton","712571","Hillcrest Children�s Services (2) Ltd t/a Options BESD (1) Ltd","P16852020180316","650.00","Grant Payments to Individuals","190437072","21/03/2018","Looked After Children","LAC Education Team (LACE)","R6402"
"Wolverhampton City Council","http://opendatacommunities.org/id/metropolitan-district-council/wolverhampton","712571","Hillcrest Children�s Services (2) Ltd t/a Options BESD (1) Ltd","P16852020180316","650.00","Grant Payments to Individuals","190437072","21/03/2018","Looked After Children","LAC Education Team (LACE)","R6402"
"Wolverhampton City Council","http://opendatacommunities.org/id/metropolitan-district-council/wolverhampton","712571","Hillcrest Children�s Services (2) Ltd t/a Options BESD (1) Ltd","P16852020180316","650.00","Grant Payments to Individuals","190437072","21/03/2018","Looked After Children","LAC Education Team (LACE)","R6402"
"Wolverhampton City Council","http://opendatacommunities.org/id/metropolitan-district-council/wolverhampton","712571","Hillcrest Children�s Services (2) Ltd t/a Options BESD (1) Ltd","P16852020180316","650.00","Grant Payments to Individuals","190437072","21/03/2018","Looked After Children","LAC Education Team (LACE)","R6402"
"Wolverhampton City Council","http://opendatacommunities.org/id/metropolitan-district-council/wolverhampton","712571","Hillcrest Children�s Services (2) Ltd t/a Options BESD (1) Ltd","P16852020180316","650.00","Grant Payments to Individuals","190437072","21/03/2018","Looked After Children","LAC Education Team (LACE)","R6402"
"Wolverhampton City Council","http://opendatacommunities.org/id/metropolitan-district-council/wolverhampton","712571","Hillcrest Children�s Services (2) Ltd t/a Options BESD (1) Ltd","P167949 01041820180313","30,672.00","TPP - Residential Care - Long Term","190435088","14/03/2018","Looked After Children","Out of City - Pooled Budget","R5400"
"Wolverhampton City Council","http://opendatacommunities.org/id/metropolitan-district-council/wolverhampton","712571","Hillcrest Children�s Services (2) Ltd t/a Options BESD (1) Ltd","P167949 01041820180313","30,672.00","TPP - Residential Care - Long Term","190435088","14/03/2018","Looked After Children","Out of City - Pooled Budget","R5400"
"Wolverhampton City Council","http://opendatacommunities.org/id/metropolitan-district-council/wolverhampton","712583","Acuity Legal Limited","20000","1,835.70","Services - Professional Fees","130206867","14/03/2018","Legal Services","Centralised External Legal Costs","R4400"
"Wolverhampton City Council","http://opendatacommunities.org/id/metropolitan-district-council/wolverhampton","712608","Croydon Health Services","I0117566 Oct-Dec 17","298.78","TPP - Public Health Contracts","190432113","07/03/2018","Contracts","Sexual Health","R5060"
"Wolverhampton City Council","http://opendatacommunities.org/id/metropolitan-district-council/wolverhampton","712620","Music Box Nursery","TFT Spring 2018 Inst 2","3,647.04","TPP - Private Nursery Education Funding","190439893","23/03/2018","Early Years","Early Years Entitlement Funding for Disadvantaged 2 Year Olds","R5035"
"Wolverhampton City Council","http://opendatacommunities.org/id/metropolitan-district-council/wolverhampton","712620","Music Box Nursery","NEF Spring 2018 INST 2","6,546.08","TPP - Private Nursery Education Funding","190439901","23/03/2018","Early Years","Early Years Universal Entitlement for 3 and 4 Year Olds","R5035"
"Wolverhampton City Council","http://opendatacommunities.org/id/metropolitan-district-council/wolverhampton","712620","Music Box Nursery","5","480.00","TPP - Child Care provided for client","130207900","21/03/2018","Adult Education","Discretionary Fund","R5034"
"Wolverhampton City Council","http://opendatacommunities.org/id/metropolitan-district-council/wolverhampton","712644","Harper Group Construction Limited","001  IN000451","15,876.64","Construction and Conversion","130210422","21/03/2018","-","Development of Cultural Estate","C1100"
"Wolverhampton City Council","http://opendatacommunities.org/id/metropolitan-district-council/wolverhampton","712681","Bettridge School","P16852020180316","650.00","Grant Payments to Individuals","190437072","21/03/2018","Looked After Children","LAC Education Team (LACE)","R6402"
"Wolverhampton City Council","http://opendatacommunities.org/id/metropolitan-district-council/wolverhampton","712697","L B Window Cleaning Services","837","-50.00","Window Cleaning","130207733","07/03/2018","Early Intervention","EIP Locality 5 � Whitmore Reans","R2701"
"Wolverhampton City Council","http://opendatacommunities.org/id/metropolitan-district-council/wolverhampton","712697","L B Window Cleaning Services","837","50.00","Window Cleaning","130207733","07/03/2018","Early Intervention","EIP Locality 5 � Whitmore Reans","R2701"
"Wolverhampton City Council","http://opendatacommunities.org/id/metropolitan-district-council/wolverhampton","712697","L B Window Cleaning Services","837","50.00","Window Cleaning","130207733","07/03/2018","Early Intervention","EIP Locality 5 � Whitmore Reans","R2701"
"Wolverhampton City Council","http://opendatacommunities.org/id/metropolitan-district-council/wolverhampton","712697","L B Window Cleaning Services","842","50.00","Window Cleaning","130207734","07/03/2018","Early Intervention","EIP Locality 5 � Whitmore Reans","R2701"
"Wolverhampton City Council","http://opendatacommunities.org/id/metropolitan-district-council/wolverhampton","712697","L B Window Cleaning Services","842","-50.00","Window Cleaning","130207734","07/03/2018","Early Intervention","EIP Locality 5 � Whitmore Reans","R2701"
"Wolverhampton City Council","http://opendatacommunities.org/id/metropolitan-district-council/wolverhampton","712697","L B Window Cleaning Services","842","50.00","Window Cleaning","130207734","07/03/2018","Early Intervention","EIP Locality 5 � Whitmore Reans","R2701"
"Wolverhampton City Council","http://opendatacommunities.org/id/metropolitan-district-council/wolverhampton","712697","L B Window Cleaning Services","867","50.00","Window Cleaning","130207735","14/03/2018","Early Intervention","EIP Locality 5 � Whitmore Reans","R2701"
"Wolverhampton City Council","http://opendatacommunities.org/id/metropolitan-district-council/wolverhampton","712697","L B Window Cleaning Services","867","-50.00","Window Cleaning","130207735","14/03/2018","Early Intervention","EIP Locality 5 � Whitmore Reans","R2701"
"Wolverhampton City Council","http://opendatacommunities.org/id/metropolitan-district-council/wolverhampton","712697","L B Window Cleaning Services","867","50.00","Window Cleaning","130207735","14/03/2018","Early Intervention","EIP Locality 5 � Whitmore Reans","R2701"
"Wolverhampton City Council","http://opendatacommunities.org/id/metropolitan-district-council/wolverhampton","712735","Institute of Licensing (Events) Ltd","EVE22608","500.00","Training Expenses","130208960","14/03/2018","Licensing","Licensing - Private Hire Vehicles","R1650"
"Wolverhampton City Council","http://opendatacommunities.org/id/metropolitan-district-council/wolverhampton","712763","WCC CTAX and NNDR uploads only","612346921127 (b)","149.00","No Recourse to Public Funds","190435393","16/03/2018","Child Protection","CIN/CP Social Work Unit - Area 5","R6314"
"Wolverhampton City Council","http://opendatacommunities.org/id/metropolitan-district-council/wolverhampton","712763","WCC CTAX and NNDR uploads only","51974","139.14","R&M - Departmental planned (external)","190437851","21/03/2018","Housing","Housing Regeneration Empty Dwelling Management","R2001"
"Wolverhampton City Council","http://opendatacommunities.org/id/metropolitan-district-council/wolverhampton","712763","WCC CTAX and NNDR uploads only","1112544F 16012018","455.07","Accommodation Costs","190431957","07/03/2018","Looked After Children","LAC Transitions Team","R4900"
"Wolverhampton City Council","http://opendatacommunities.org/id/metropolitan-district-council/wolverhampton","712763","WCC CTAX and NNDR uploads only","612346921127 (a)","149.00","No Recourse to Public Funds","190435392","16/03/2018","Child Protection","CIN/CP Social Work Unit - Area 5","R6314"
"Wolverhampton City Council","http://opendatacommunities.org/id/metropolitan-district-council/wolverhampton","712763","WCC CTAX and NNDR uploads only","612346971272 (a)","340.84","No Recourse to Public Funds","190435394","16/03/2018","Child Protection","CIN/CP Social Work Unit - Area 5","R6314"
"Wolverhampton City Council","http://opendatacommunities.org/id/metropolitan-district-council/wolverhampton","712763","WCC CTAX and NNDR uploads only","612346283350 MAR18","315.68","No Recourse to Public Funds","190434844","14/03/2018","Child Protection","Childrens with Disabilities Team","R6314"
"Wolverhampton City Council","http://opendatacommunities.org/id/metropolitan-district-council/wolverhampton","712763","WCC CTAX and NNDR uploads only","612345019535(K)","92.00","No Recourse to Public Funds","190435391","16/03/2018","Child Protection","CIN/CP Social Work Unit - Area 5","R6314"
"Wolverhampton City Council","http://opendatacommunities.org/id/metropolitan-district-council/wolverhampton","712819","Ramada Park Hall Hotel & Spa","BK113294/1  Pro-forma Invoice","478.50","Marketing \ Non-staff advertising","130210140","21/03/2018","Corporate Communications","Communications & Marketing - General","R4317"
"Wolverhampton City Council","http://opendatacommunities.org/id/metropolitan-district-council/wolverhampton","712819","Ramada Park Hall Hotel & Spa","BK113294/1  Pro-forma Invoice","-478.50","Marketing \ Non-staff advertising","130210140","21/03/2018","Corporate Communications","Communications & Marketing - General","R4317"
"Wolverhampton City Council","http://opendatacommunities.org/id/metropolitan-district-council/wolverhampton","712819","Ramada Park Hall Hotel & Spa","BK113294/1  Pro-forma Invoice","478.50","Marketing \ Non-staff advertising","130210140","21/03/2018","Corporate Communications","Communications & Marketing - General","R4317"
"Wolverhampton City Council","http://opendatacommunities.org/id/metropolitan-district-council/wolverhampton","712825","Jumping Jos Day Nursery","NEF Spring 2018 INST 2","29,277.83","TPP - Private Nursery Education Funding","190439901","23/03/2018","Early Years","Early Years Universal Entitlement for 3 and 4 Year Olds","R5035"
"Wolverhampton City Council","http://opendatacommunities.org/id/metropolitan-district-council/wolverhampton","712825","Jumping Jos Day Nursery","TFT Spring 2018 Inst 2","738.84","TPP - Private Nursery Education Funding","190439893","23/03/2018","Early Years","Early Years Entitlement Funding for Disadvantaged 2 Year Olds","R5035"
"Wolverhampton City Council","http://opendatacommunities.org/id/metropolitan-district-council/wolverhampton","712825","Jumping Jos Day Nursery","EYPP Spring 2018","1,240.20","TPP - Private Nursery Education Funding","190441753","26/03/2018","Early Years","Early Years Pupil Premium","R5035"
"Wolverhampton City Council","http://opendatacommunities.org/id/metropolitan-district-council/wolverhampton","712827","Shooting Stars Nurseries","TFT Spring 2018 Inst 2","1,131.84","TPP - Private Nursery Education Funding","190439893","23/03/2018","Early Years","Early Years Entitlement Funding for Disadvantaged 2 Year Olds","R5035"
"Wolverhampton City Council","http://opendatacommunities.org/id/metropolitan-district-council/wolverhampton","712827","Shooting Stars Nurseries","NEF Spring 2018 INST 2","21,769.67","TPP - Private Nursery Education Funding","190439901","23/03/2018","Early Years","Early Years Universal Entitlement for 3 and 4 Year Olds","R5035"
"Wolverhampton City Council","http://opendatacommunities.org/id/metropolitan-district-council/wolverhampton","712827","Shooting Stars Nurseries","EYPP Spring 2018","95.40","TPP - Private Nursery Education Funding","190441753","26/03/2018","Early Years","Early Years Pupil Premium","R5035"
"Wolverhampton City Council","http://opendatacommunities.org/id/metropolitan-district-council/wolverhampton","712830","Elaine Gosnell","NEF Spring 2018 INST 2","612.00","TPP - Private Nursery Education Funding","190439901","23/03/2018","Early Years","Early Years Universal Entitlement for 3 and 4 Year Olds","R5035"
"Wolverhampton City Council","http://opendatacommunities.org/id/metropolitan-district-council/wolverhampton","712836","OSMIS Education","0000418","2,250.00","Training Expenses","130208919","14/03/2018","School Planning & Resources","Education Data Services","R1650"
"Wolverhampton City Council","http://opendatacommunities.org/id/metropolitan-district-council/wolverhampton","712839","County Bridge Primary School","P16808120180313","650.00","Grant Payments to Individuals","190435204","14/03/2018","Looked After Children","LAC Education Team (LACE)","R6402"
"Wolverhampton City Council","http://opendatacommunities.org/id/metropolitan-district-council/wolverhampton","712874","Riverside Environmental Services Limited","I026829","725.00","R&M - Departmental planned (external)","130208574","26/03/2018","Corporate Asset Management","Statutory Surveys","R2001"
"Wolverhampton City Council","http://opendatacommunities.org/id/metropolitan-district-council/wolverhampton","712874","Riverside Environmental Services Limited","I026835","725.00","R&M - Departmental planned (external)","130208578","26/03/2018","Corporate Asset Management","Statutory Surveys","R2001"
"Wolverhampton City Council","http://opendatacommunities.org/id/metropolitan-district-council/wolverhampton","712874","Riverside Environmental Services Limited","I026840","480.00","R&M - Departmental planned (external)","130208580","26/03/2018","Corporate Asset Management","Statutory Surveys","R2001"
"Wolverhampton City Council","http://opendatacommunities.org/id/metropolitan-district-council/wolverhampton","712874","Riverside Environmental Services Limited","I026892","695.00","R&M - Departmental planned (external)","130208581","26/03/2018","Corporate Asset Management","Statutory Surveys","R2001"
"Wolverhampton City Council","http://opendatacommunities.org/id/metropolitan-district-council/wolverhampton","712874","Riverside Environmental Services Limited","I026820","175.00","R&M - Departmental planned (external)","130208256","26/03/2018","School Planning & Resources","Primary Expansion Feasibility Work","R2001"
"Wolverhampton City Council","http://opendatacommunities.org/id/metropolitan-district-council/wolverhampton","712874","Riverside Environmental Services Limited","I026932","270.00","Construction and Conversion","130208585","26/03/2018","-","Development of Cultural Estate","C1100"
"Wolverhampton City Council","http://opendatacommunities.org/id/metropolitan-district-council/wolverhampton","712874","Riverside Environmental Services Limited","I026723","175.00","R&M - Departmental planned (external)","130205935","07/03/2018","Corporate Asset Management","Statutory Surveys","R2001"
"Wolverhampton City Council","http://opendatacommunities.org/id/metropolitan-district-council/wolverhampton","712874","Riverside Environmental Services Limited","I026574","285.00","R&M - Departmental planned (external)","130208571","09/03/2018","Corporate Asset Management","Statutory Surveys","R2001"
"Wolverhampton City Council","http://opendatacommunities.org/id/metropolitan-district-council/wolverhampton","712874","Riverside Environmental Services Limited","I026828","725.00","R&M - Departmental planned (external)","130210362","26/03/2018","Corporate Asset Management","Statutory Surveys","R2001"
"Wolverhampton City Council","http://opendatacommunities.org/id/metropolitan-district-council/wolverhampton","712874","Riverside Environmental Services Limited","I026833","1,195.00","R&M - Departmental planned (external)","130208260","26/03/2018","Corporate Asset Management","Statutory Surveys","R2001"
"Wolverhampton City Council","http://opendatacommunities.org/id/metropolitan-district-council/wolverhampton","712874","Riverside Environmental Services Limited","I026823","2,675.00","Construction and Conversion","130208257","26/03/2018","-","Capital Maintenance - Heating Pipework Upgrades","C1100"
"Wolverhampton City Council","http://opendatacommunities.org/id/metropolitan-district-council/wolverhampton","712874","Riverside Environmental Services Limited","I026827","725.00","R&M - Departmental planned (external)","130208573","26/03/2018","Corporate Asset Management","Statutory Surveys","R2001"
"Wolverhampton City Council","http://opendatacommunities.org/id/metropolitan-district-council/wolverhampton","712874","Riverside Environmental Services Limited","I026834","725.00","R&M - Departmental planned (external)","130208577","26/03/2018","Corporate Asset Management","Statutory Surveys","R2001"
"Wolverhampton City Council","http://opendatacommunities.org/id/metropolitan-district-council/wolverhampton","712874","Riverside Environmental Services Limited","I026604","2,800.00","R&M - Departmental planned (external)","130210102","21/03/2018","Corporate Asset Management","Statutory Surveys","R2001"
"Wolverhampton City Council","http://opendatacommunities.org/id/metropolitan-district-council/wolverhampton","712874","Riverside Environmental Services Limited","I026573","1,200.00","R&M - Departmental planned (external)","130208570","09/03/2018","Strategic Organisation Development","Penn Library","R2001"
"Wolverhampton City Council","http://opendatacommunities.org/id/metropolitan-district-council/wolverhampton","712874","Riverside Environmental Services Limited","I026603","3,530.00","R&M - Departmental planned (external)","130204828","02/03/2018","Corporate Asset Management","Statutory Surveys","R2001"
"Wolverhampton City Council","http://opendatacommunities.org/id/metropolitan-district-council/wolverhampton","712874","Riverside Environmental Services Limited","I026721","225.00","R&M - Departmental planned (external)","130205933","07/03/2018","Corporate Asset Management","Statutory Surveys","R2001"
"Wolverhampton City Council","http://opendatacommunities.org/id/metropolitan-district-council/wolverhampton","712874","Riverside Environmental Services Limited","I026830","725.00","R&M - Departmental planned (external)","130208575","26/03/2018","Corporate Asset Management","Statutory Surveys","R2001"
"Wolverhampton City Council","http://opendatacommunities.org/id/metropolitan-district-council/wolverhampton","712874","Riverside Environmental Services Limited","I026894","995.00","R&M - Departmental planned (external)","130208583","26/03/2018","Corporate Asset Management","Statutory Surveys","R2001"
"Wolverhampton City Council","http://opendatacommunities.org/id/metropolitan-district-council/wolverhampton","712874","Riverside Environmental Services Limited","I026836","725.00","R&M - Departmental planned (external)","130208579","26/03/2018","Corporate Asset Management","Statutory Surveys","R2001"
"Wolverhampton City Council","http://opendatacommunities.org/id/metropolitan-district-council/wolverhampton","712874","Riverside Environmental Services Limited","I026839","480.00","R&M - Departmental planned (external)","130208740","26/03/2018","Corporate Asset Management","Statutory Surveys","R2001"
"Wolverhampton City Council","http://opendatacommunities.org/id/metropolitan-district-council/wolverhampton","712874","Riverside Environmental Services Limited","I026837","725.00","R&M - Departmental planned (external)","130208261","26/03/2018","Corporate Asset Management","Statutory Surveys","R2001"
"Wolverhampton City Council","http://opendatacommunities.org/id/metropolitan-district-council/wolverhampton","712874","Riverside Environmental Services Limited","I026832","250.00","Construction and Conversion","130208259","26/03/2018","-","Corporate Asset Management","C1100"
"Wolverhampton City Council","http://opendatacommunities.org/id/metropolitan-district-council/wolverhampton","712874","Riverside Environmental Services Limited","I026722","525.00","R&M - Departmental planned (external)","130205934","07/03/2018","Corporate Asset Management","Statutory Surveys","R2001"
"Wolverhampton City Council","http://opendatacommunities.org/id/metropolitan-district-council/wolverhampton","712874","Riverside Environmental Services Limited","I026570","540.00","Construction and Conversion","130208569","09/03/2018","-","Capital Maintenance - Heating Pipework Upgrades","C1100"
"Wolverhampton City Council","http://opendatacommunities.org/id/metropolitan-district-council/wolverhampton","712874","Riverside Environmental Services Limited","I026824","2,310.00","Construction and Conversion","130208258","26/03/2018","-","Capital Maintenance - Heating Pipework Upgrades","C1100"
"Wolverhampton City Council","http://opendatacommunities.org/id/metropolitan-district-council/wolverhampton","712874","Riverside Environmental Services Limited","I026838","480.00","R&M - Departmental planned (external)","130208262","26/03/2018","Corporate Asset Management","Statutory Surveys","R2001"
"Wolverhampton City Council","http://opendatacommunities.org/id/metropolitan-district-council/wolverhampton","712874","Riverside Environmental Services Limited","I026868","725.00","R&M - Departmental planned (external)","130208741","26/03/2018","Corporate Asset Management","Statutory Surveys","R2001"
"Wolverhampton City Council","http://opendatacommunities.org/id/metropolitan-district-council/wolverhampton","712874","Riverside Environmental Services Limited","I026831","725.00","R&M - Departmental planned (external)","130208576","26/03/2018","Corporate Asset Management","Statutory Surveys","R2001"
"Wolverhampton City Council","http://opendatacommunities.org/id/metropolitan-district-council/wolverhampton","712874","Riverside Environmental Services Limited","I026930","150.00","Construction and Conversion","130208584","26/03/2018","-","Development of Cultural Estate","C1100"
"Wolverhampton City Council","http://opendatacommunities.org/id/metropolitan-district-council/wolverhampton","712874","Riverside Environmental Services Limited","I026826","725.00","R&M - Departmental planned (external)","130208572","26/03/2018","Corporate Asset Management","Statutory Surveys","R2001"
"Wolverhampton City Council","http://opendatacommunities.org/id/metropolitan-district-council/wolverhampton","712879","B D Fuels Ltd","332322","823.62","Heating Oil","130208438","21/03/2018","Strategic Organisation Development","Tettenhall Library","R2102"
"Wolverhampton City Council","http://opendatacommunities.org/id/metropolitan-district-council/wolverhampton","712902","Leisure in the Community Ltd","840","123.75","Services - Professional Fees","130202528","23/03/2018","Visitor Economy","Another Moutain - NPO ACE WAG","R4400"
"Wolverhampton City Council","http://opendatacommunities.org/id/metropolitan-district-council/wolverhampton","712960","Coventry and Warwickshire Partnership Trust","0000031702 GUM Jan 18","138.14","TPP - Public Health Contracts","190432112","07/03/2018","Contracts","Sexual Health","R5060"
"Wolverhampton City Council","http://opendatacommunities.org/id/metropolitan-district-council/wolverhampton","712963","Royal Liverpool and Broadgreen University Hospital","8610075677 Sept-Oct 17","139.00","TPP - Public Health Contracts","190432108","07/03/2018","Contracts","Sexual Health","R5060"
"Wolverhampton City Council","http://opendatacommunities.org/id/metropolitan-district-council/wolverhampton","713008","Wolverley cofe Secondary School","P16808120180313","650.00","Grant Payments to Individuals","190435204","14/03/2018","Looked After Children","LAC Education Team (LACE)","R6402"
"Wolverhampton City Council","http://opendatacommunities.org/id/metropolitan-district-council/wolverhampton","713009","Wightwick Hall School","WHSI46","17,247.25","TPP - Alternative Provision of Education","130210363","21/03/2018","Standards and Vulnerable Pupils","SEN Education OOC","R5037"
"Wolverhampton City Council","http://opendatacommunities.org/id/metropolitan-district-council/wolverhampton","713009","Wightwick Hall School","WHSI42","352.50","TPP - Alternative Provision of Education","130207590","02/03/2018","Standards and Vulnerable Pupils","SEN Education OOC","R5037"
"Wolverhampton City Council","http://opendatacommunities.org/id/metropolitan-district-council/wolverhampton","713009","Wightwick Hall School","P16808120180313","650.00","Grant Payments to Individuals","190435204","14/03/2018","Looked After Children","LAC Education Team (LACE)","R6402"
"Wolverhampton City Council","http://opendatacommunities.org/id/metropolitan-district-council/wolverhampton","713012","Ormiston Shelfield Community Academy","P16852020180316","650.00","Grant Payments to Individuals","190437072","21/03/2018","Looked After Children","LAC Education Team (LACE)","R6402"
"Wolverhampton City Council","http://opendatacommunities.org/id/metropolitan-district-council/wolverhampton","713012","Ormiston Shelfield Community Academy","P16852020180316","650.00","Grant Payments to Individuals","190437072","21/03/2018","Looked After Children","LAC Education Team (LACE)","R6402"
"Wolverhampton City Council","http://opendatacommunities.org/id/metropolitan-district-council/wolverhampton","713012","Ormiston Shelfield Community Academy","P16852020180316","650.00","Grant Payments to Individuals","190437072","21/03/2018","Looked After Children","LAC Education Team (LACE)","R6402"
"Wolverhampton City Council","http://opendatacommunities.org/id/metropolitan-district-council/wolverhampton","713012","Ormiston Shelfield Community Academy","P16852020180316","650.00","Grant Payments to Individuals","190437072","21/03/2018","Looked After Children","LAC Education Team (LACE)","R6402"
"Wolverhampton City Council","http://opendatacommunities.org/id/metropolitan-district-council/wolverhampton","713043","Wood Green Academy","P16808120180313","650.00","Grant Payments to Individuals","190435204","14/03/2018","Looked After Children","LAC Education Team (LACE)","R6402"
"Wolverhampton City Council","http://opendatacommunities.org/id/metropolitan-district-council/wolverhampton","713043","Wood Green Academy","P16808120180313","650.00","Grant Payments to Individuals","190435204","14/03/2018","Looked After Children","LAC Education Team (LACE)","R6402"
"Wolverhampton City Council","http://opendatacommunities.org/id/metropolitan-district-council/wolverhampton","713043","Wood Green Academy","P16808120180313","650.00","Grant Payments to Individuals","190435204","14/03/2018","Looked After Children","LAC Education Team (LACE)","R6402"
"Wolverhampton City Council","http://opendatacommunities.org/id/metropolitan-district-council/wolverhampton","713044","Prestbury Medical Practice","ref:DN/JM/18165","20.00","Medical Fees","190431966","07/03/2018","Strategic Organisation Development","Global Budgets","R1400"
"Wolverhampton City Council","http://opendatacommunities.org/id/metropolitan-district-council/wolverhampton","713065","David Perrin","WSCB-0021","675.00","Training Expenses","130207150","14/03/2018","Safeguarding","Safeguarding Partnership Board","R1650"
"Wolverhampton City Council","http://opendatacommunities.org/id/metropolitan-district-council/wolverhampton","713089","The Ridgeway Surgery","FOS4041","71.00","Services - Professional Fees","190430797","07/03/2018","Looked After Children","Fostering Team & Allowances","R4400"
"Wolverhampton City Council","http://opendatacommunities.org/id/metropolitan-district-council/wolverhampton","713089","The Ridgeway Surgery","FOS4040","71.00","Services - Professional Fees","190430796","07/03/2018","Looked After Children","Fostering Team & Allowances","R4400"
"Wolverhampton City Council","http://opendatacommunities.org/id/metropolitan-district-council/wolverhampton","713109","DMB Consultancy Ltd","480","1,000.00","Services - Professional Fees","130207328","21/03/2018","Human Resources","Doctors Service","R4400"
"Wolverhampton City Council","http://opendatacommunities.org/id/metropolitan-district-council/wolverhampton","713109","DMB Consultancy Ltd","480","-1,000.00","Services - Professional Fees","130207328","21/03/2018","Human Resources","Doctors Service","R4400"
"Wolverhampton City Council","http://opendatacommunities.org/id/metropolitan-district-council/wolverhampton","713109","DMB Consultancy Ltd","480","1,000.00","Services - Professional Fees","130207328","21/03/2018","Human Resources","Doctors Service","R4400"
"Wolverhampton City Council","http://opendatacommunities.org/id/metropolitan-district-council/wolverhampton","713118","Bethphage","603620180315","12,751.20","TPP - Supported Living","190435936","16/03/2018","Learning Disabilities Care Purchasing","LD Care Purchasing (Spot Placements)","R5422"
"Wolverhampton City Council","http://opendatacommunities.org/id/metropolitan-district-council/wolverhampton","713162","Bita Pathways T/A BETTER Pathways","1300920180320","120.00","TPP - Day Care","190437972","21/03/2018","Learning Disabilities Care Purchasing","LD Care Purchasing (Spot Placements)","R5430"
"Wolverhampton City Council","http://opendatacommunities.org/id/metropolitan-district-council/wolverhampton","713162","Bita Pathways T/A BETTER Pathways","1301120180320","160.00","TPP - Day Care","190437974","21/03/2018","Learning Disabilities Care Purchasing","LD Care Purchasing (Spot Placements)","R5430"
"Wolverhampton City Council","http://opendatacommunities.org/id/metropolitan-district-council/wolverhampton","713162","Bita Pathways T/A BETTER Pathways","1301020180320","160.00","TPP - Day Care","190437973","21/03/2018","Learning Disabilities Care Purchasing","LD Care Purchasing (Spot Placements)","R5430"
"Wolverhampton City Council","http://opendatacommunities.org/id/metropolitan-district-council/wolverhampton","713246","Midland Foods Limited","1137226","19.75","Provisions (Not for resale)","130204832","07/03/2018","Older People Provider Services","Bradley Lodge Resource Centre","R4101"
"Wolverhampton City Council","http://opendatacommunities.org/id/metropolitan-district-council/wolverhampton","713246","Midland Foods Limited","1141649","11.26","Provisions (Not for resale)","130208921","16/03/2018","Older People Provider Services","Bradley Lodge Resource Centre","R4101"
"Wolverhampton City Council","http://opendatacommunities.org/id/metropolitan-district-council/wolverhampton","713246","Midland Foods Limited","1141776","34.99","Provisions (Not for resale)","130208922","16/03/2018","Older People Provider Services","Bradley Lodge Resource Centre","R4101"
"Wolverhampton City Council","http://opendatacommunities.org/id/metropolitan-district-council/wolverhampton","713246","Midland Foods Limited","1144197","127.95","Provisions (Not for resale)","130208927","21/03/2018","Older People Provider Services","Blakenhall Resource Centre","R4101"
"Wolverhampton City Council","http://opendatacommunities.org/id/metropolitan-district-council/wolverhampton","713246","Midland Foods Limited","1143001","47.92","Provisions (Not for resale)","130208924","16/03/2018","Older People Provider Services","Bradley Lodge Resource Centre","R4101"
"Wolverhampton City Council","http://opendatacommunities.org/id/metropolitan-district-council/wolverhampton","713246","Midland Foods Limited","1143816","69.44","Provisions (Not for resale)","130208926","16/03/2018","Older People Provider Services","Bradley Lodge Resource Centre","R4101"
"Wolverhampton City Council","http://opendatacommunities.org/id/metropolitan-district-council/wolverhampton","713246","Midland Foods Limited","1144412","41.42","Provisions (Not for resale)","130208928","21/03/2018","Older People Provider Services","Bradley Lodge Resource Centre","R4101"
"Wolverhampton City Council","http://opendatacommunities.org/id/metropolitan-district-council/wolverhampton","713246","Midland Foods Limited","1144640","55.74","Provisions (Not for resale)","130208929","23/03/2018","Older People Provider Services","Bradley Lodge Resource Centre","R4101"
"Wolverhampton City Council","http://opendatacommunities.org/id/metropolitan-district-council/wolverhampton","713246","Midland Foods Limited","1141636","13.02","Provisions (Not for resale)","130208920","14/03/2018","Older People Provider Services","Bradley Lodge Resource Centre","R4101"
"Wolverhampton City Council","http://opendatacommunities.org/id/metropolitan-district-council/wolverhampton","713246","Midland Foods Limited","1142776","53.93","Provisions (Not for resale)","130208923","16/03/2018","Older People Provider Services","Bradley Lodge Resource Centre","R4101"
"Wolverhampton City Council","http://opendatacommunities.org/id/metropolitan-district-council/wolverhampton","713246","Midland Foods Limited","1143632","22.03","Provisions (Not for resale)","130208925","16/03/2018","Older People Provider Services","Bradley Lodge Resource Centre","R4101"
"Wolverhampton City Council","http://opendatacommunities.org/id/metropolitan-district-council/wolverhampton","713258","MTH Cleaning Equipment Ltd","MTH160852","90.00","Services - Professional Fees","190435335","14/03/2018","Fleet Services","Fleet Management","R4400"
"Wolverhampton City Council","http://opendatacommunities.org/id/metropolitan-district-council/wolverhampton","713258","MTH Cleaning Equipment Ltd","MTH160852","159.18","Services - Professional Fees","190435335","14/03/2018","Fleet Services","Fleet Management","R4400"
"Wolverhampton City Council","http://opendatacommunities.org/id/metropolitan-district-council/wolverhampton","713258","MTH Cleaning Equipment Ltd","MTH160852","150.00","Services - Professional Fees","190435335","14/03/2018","Fleet Services","Fleet Management","R4400"
"Wolverhampton City Council","http://opendatacommunities.org/id/metropolitan-district-council/wolverhampton","713264","Holly Hall Maths & Computer College","P16852020180316","650.00","Grant Payments to Individuals","190437072","21/03/2018","Looked After Children","LAC Education Team (LACE)","R6402"
"Wolverhampton City Council","http://opendatacommunities.org/id/metropolitan-district-council/wolverhampton","713264","Holly Hall Maths & Computer College","P16852020180316","650.00","Grant Payments to Individuals","190437072","21/03/2018","Looked After Children","LAC Education Team (LACE)","R6402"
"Wolverhampton City Council","http://opendatacommunities.org/id/metropolitan-district-council/wolverhampton","713286","Energas","4678949","8.63","Equipment - R & M","190435292","14/03/2018","Fleet Services","Fleet Management","R4003"
"Wolverhampton City Council","http://opendatacommunities.org/id/metropolitan-district-council/wolverhampton","713286","Energas","4678949","17.26","Equipment - R & M","190435292","14/03/2018","Fleet Services","Fleet Management","R4003"
"Wolverhampton City Council","http://opendatacommunities.org/id/metropolitan-district-council/wolverhampton","713286","Energas","4678949","21.72","Equipment - R & M","190435292","14/03/2018","Fleet Services","Fleet Management","R4003"
"Wolverhampton City Council","http://opendatacommunities.org/id/metropolitan-district-council/wolverhampton","713452","Airguard Filters","Grant No. 018/17c","4,045.00","Grants paid out","190432004","07/03/2018","-","GF - Black Country Gold ERDF Project","C5000"
"Wolverhampton City Council","http://opendatacommunities.org/id/metropolitan-district-council/wolverhampton","713487","Gandlake Limited","90994","29,926.00","Computing - Maint Agreements","130208464","07/03/2018","ICTS","Strategic ICTS (ICT Service Budget)","R4534"
"Wolverhampton City Council","http://opendatacommunities.org/id/metropolitan-district-council/wolverhampton","713498","Belle Vue Primary School","P16852020180316","650.00","Grant Payments to Individuals","190437072","21/03/2018","Looked After Children","LAC Education Team (LACE)","R6402"
"Wolverhampton City Council","http://opendatacommunities.org/id/metropolitan-district-council/wolverhampton","713498","Belle Vue Primary School","P16852020180316","650.00","Grant Payments to Individuals","190437072","21/03/2018","Looked After Children","LAC Education Team (LACE)","R6402"
"Wolverhampton City Council","http://opendatacommunities.org/id/metropolitan-district-council/wolverhampton","713500","St. Mary�s CE (VC) Primary School","P16852020180316","650.00","Grant Payments to Individuals","190437072","21/03/2018","Looked After Children","LAC Education Team (LACE)","R6402"
"Wolverhampton City Council","http://opendatacommunities.org/id/metropolitan-district-council/wolverhampton","713564","Bloomfield College","P16852020180316","650.00","Grant Payments to Individuals","190437072","21/03/2018","Looked After Children","LAC Education Team (LACE)","R6402"
"Wolverhampton City Council","http://opendatacommunities.org/id/metropolitan-district-council/wolverhampton","713574","Tremark Associates Limited","80401","172.20","Services - Professional Fees","130210364","23/03/2018","Legal Services","Centralised External Legal Costs","R4400"
"Wolverhampton City Council","http://opendatacommunities.org/id/metropolitan-district-council/wolverhampton","713584","Elms Bank Spec. Coll. 70110 (Bury MBC)","P16852020180316","650.00","Grant Payments to Individuals","190437072","21/03/2018","Looked After Children","LAC Education Team (LACE)","R6402"
"Wolverhampton City Council","http://opendatacommunities.org/id/metropolitan-district-council/wolverhampton","713637","St Mary�s Catholic Primary Academy","P16808120180313","650.00","Grant Payments to Individuals","190435204","14/03/2018","Looked After Children","LAC Education Team (LACE)","R6402"
"Wolverhampton City Council","http://opendatacommunities.org/id/metropolitan-district-council/wolverhampton","713637","St Mary�s Catholic Primary Academy","P16808120180313","650.00","Grant Payments to Individuals","190435204","14/03/2018","Looked After Children","LAC Education Team (LACE)","R6402"
"Wolverhampton City Council","http://opendatacommunities.org/id/metropolitan-district-council/wolverhampton","713637","St Mary�s Catholic Primary Academy","SEN Mainstream Top Ups Spring Term 2017/18 - St Marys Catholic Academy","3,341.37","Grant Payments","190439957","23/03/2018","Schools","High Needs Top Up -Mainstream Schools/Academies","R4700"
"Wolverhampton City Council","http://opendatacommunities.org/id/metropolitan-district-council/wolverhampton","713637","St Mary�s Catholic Primary Academy","EYPP Spring 2018","858.60","TPP - Private Nursery Education Funding","190441753","26/03/2018","Early Years","Early Years Pupil Premium","R5035"
"Wolverhampton City Council","http://opendatacommunities.org/id/metropolitan-district-council/wolverhampton","713638","Corpus Christi Catholic Primary Academy","EYPP Spring 2018","1,240.20","TPP - Private Nursery Education Funding","190441753","26/03/2018","Early Years","Early Years Pupil Premium","R5035"
"Wolverhampton City Council","http://opendatacommunities.org/id/metropolitan-district-council/wolverhampton","713639","St Martins Multi Academy Trust","St Martin?s Primary Academy DAF Payment x 1","615.00","Grant Payments","190439922","23/03/2018","Early Years","Early Years Disability Access Fund (DAF)","R4700"
"Wolverhampton City Council","http://opendatacommunities.org/id/metropolitan-district-council/wolverhampton","713639","St Martins Multi Academy Trust","P16808120180313","650.00","Grant Payments to Individuals","190435204","14/03/2018","Looked After Children","LAC Education Team (LACE)","R6402"
"Wolverhampton City Council","http://opendatacommunities.org/id/metropolitan-district-council/wolverhampton","713639","St Martins Multi Academy Trust","P16808120180313","650.00","Grant Payments to Individuals","190435204","14/03/2018","Looked After Children","LAC Education Team (LACE)","R6402"
"Wolverhampton City Council","http://opendatacommunities.org/id/metropolitan-district-council/wolverhampton","713639","St Martins Multi Academy Trust","P16808120180313","650.00","Grant Payments to Individuals","190435204","14/03/2018","Looked After Children","LAC Education Team (LACE)","R6402"
"Wolverhampton City Council","http://opendatacommunities.org/id/metropolitan-district-council/wolverhampton","713639","St Martins Multi Academy Trust","SEN Mainstream Top Ups Spring Term 2017/18 - St Martins Academy","1,920.46","Grant Payments","190439956","23/03/2018","Schools","High Needs Top Up -Mainstream Schools/Academies","R4700"
"Wolverhampton City Council","http://opendatacommunities.org/id/metropolitan-district-council/wolverhampton","713639","St Martins Multi Academy Trust","EYPP Spring 2018","1,526.40","TPP - Private Nursery Education Funding","190441753","26/03/2018","Early Years","Early Years Pupil Premium","R5035"
"Wolverhampton City Council","http://opendatacommunities.org/id/metropolitan-district-council/wolverhampton","713640","Field View Academy","EYPP Spring 2018","1,431.00","TPP - Private Nursery Education Funding","190441753","26/03/2018","Early Years","Early Years Pupil Premium","R5035"
"Wolverhampton City Council","http://opendatacommunities.org/id/metropolitan-district-council/wolverhampton","713640","Field View Academy","SEN Mainstream Top Ups Spring Term 2017/18 - Field View Academy","1,314.00","Grant Payments","190439933","23/03/2018","Schools","High Needs Top Up -Mainstream Schools/Academies","R4700"
"Wolverhampton City Council","http://opendatacommunities.org/id/metropolitan-district-council/wolverhampton","713643","Our Lady & St Chad�s Catholic Academy","SEN Mainstream Top Ups Spring Term 2017/18 - OLSC Academy","5,761.38","Grant Payments","190439945","23/03/2018","Schools","High Needs Top Up -Mainstream Schools/Academies","R4700"
"Wolverhampton City Council","http://opendatacommunities.org/id/metropolitan-district-council/wolverhampton","713643","Our Lady & St Chad�s Catholic Academy","INV-OLSC0149","22,727.30","Construction and Conversion","130208439","09/03/2018","-","Sports Investment Strategy","C1100"
"Wolverhampton City Council","http://opendatacommunities.org/id/metropolitan-district-council/wolverhampton","713643","Our Lady & St Chad�s Catholic Academy","P16808120180313","650.00","Grant Payments to Individuals","190435204","14/03/2018","Looked After Children","LAC Education Team (LACE)","R6402"
"Wolverhampton City Council","http://opendatacommunities.org/id/metropolitan-district-council/wolverhampton","713643","Our Lady & St Chad�s Catholic Academy","P16808120180313","650.00","Grant Payments to Individuals","190435204","14/03/2018","Looked After Children","LAC Education Team (LACE)","R6402"
"Wolverhampton City Council","http://opendatacommunities.org/id/metropolitan-district-council/wolverhampton","713643","Our Lady & St Chad�s Catholic Academy","P16808120180313","650.00","Grant Payments to Individuals","190435204","14/03/2018","Looked After Children","LAC Education Team (LACE)","R6402"
"Wolverhampton City Council","http://opendatacommunities.org/id/metropolitan-district-council/wolverhampton","713644","Holy Rosary Catholic Primary Academy","SEN Mainstream Top Ups Spring Term 2017/18 - Holy Rosary Catholic Academy","1,920.46","Grant Payments","190439938","23/03/2018","Schools","High Needs Top Up -Mainstream Schools/Academies","R4700"
"Wolverhampton City Council","http://opendatacommunities.org/id/metropolitan-district-council/wolverhampton","713644","Holy Rosary Catholic Primary Academy","P16808120180313","650.00","Grant Payments to Individuals","190435204","14/03/2018","Looked After Children","LAC Education Team (LACE)","R6402"
"Wolverhampton City Council","http://opendatacommunities.org/id/metropolitan-district-council/wolverhampton","713670","Wolverhampton Bid Company Ltd","INV-0367","70.00","Grant Payments","130209907","21/03/2018","Community Safety","SWP - Infrastructure","R4700"
"Wolverhampton City Council","http://opendatacommunities.org/id/metropolitan-district-council/wolverhampton","713774","Rhodes & Kimberley Limited","Grant No. 059/17c","25,170.00","Grants paid out","190437225","21/03/2018","-","GF - Black Country Gold ERDF Project","C5000"
"Wolverhampton City Council","http://opendatacommunities.org/id/metropolitan-district-council/wolverhampton","713859","Shoosmiths LLP","9100222517","5,000.00","Services - Professional Fees","130208263","07/03/2018","Visitor Economy","Box Office Administration","R4400"
"Wolverhampton City Council","http://opendatacommunities.org/id/metropolitan-district-council/wolverhampton","713873","Quartzelec Ltd","7118710","268.81","R&M - Departmental planned (external)","130168043","07/03/2018","Maintenance Programme","Centralised R&M","R2001"
"Wolverhampton City Council","http://opendatacommunities.org/id/metropolitan-district-council/wolverhampton","713873","Quartzelec Ltd","7118710","400.72","R&M - Departmental planned (external)","130168043","07/03/2018","Maintenance Programme","Centralised R&M","R2001"
"Wolverhampton City Council","http://opendatacommunities.org/id/metropolitan-district-council/wolverhampton","713873","Quartzelec Ltd","7118710","1,390.72","R&M - Departmental planned (external)","130168043","07/03/2018","Maintenance Programme","Centralised R&M","R2001"
"Wolverhampton City Council","http://opendatacommunities.org/id/metropolitan-district-council/wolverhampton","713873","Quartzelec Ltd","7131704","447.50","R&M - Departmental planned (external)","130206738","14/03/2018","Maintenance Programme","Centralised R&M","R2001"
"Wolverhampton City Council","http://opendatacommunities.org/id/metropolitan-district-council/wolverhampton","713873","Quartzelec Ltd","7131788","343.75","R&M - Departmental planned (external)","130207030","16/03/2018","Maintenance Programme","Centralised R&M","R2001"
"Wolverhampton City Council","http://opendatacommunities.org/id/metropolitan-district-council/wolverhampton","713873","Quartzelec Ltd","7131874","760.11","R&M - Departmental planned (external)","130207031","21/03/2018","Maintenance Programme","Centralised R&M","R2001"
"Wolverhampton City Council","http://opendatacommunities.org/id/metropolitan-district-council/wolverhampton","713873","Quartzelec Ltd","7131874","48.49","R&M - Departmental planned (external)","130207031","21/03/2018","Maintenance Programme","Centralised R&M","R2001"
"Wolverhampton City Council","http://opendatacommunities.org/id/metropolitan-district-council/wolverhampton","713873","Quartzelec Ltd","7131220","844.27","R&M - Departmental planned (external)","130205440","02/03/2018","Maintenance Programme","Centralised R&M","R2001"
"Wolverhampton City Council","http://opendatacommunities.org/id/metropolitan-district-council/wolverhampton","713873","Quartzelec Ltd","7131871","425.69","R&M - Departmental planned (external)","130207591","21/03/2018","Maintenance Programme","Centralised R&M","R2001"
"Wolverhampton City Council","http://opendatacommunities.org/id/metropolitan-district-council/wolverhampton","713873","Quartzelec Ltd","7131871","89.33","R&M - Departmental planned (external)","130207591","21/03/2018","Maintenance Programme","Centralised R&M","R2001"
"Wolverhampton City Council","http://opendatacommunities.org/id/metropolitan-district-council/wolverhampton","713873","Quartzelec Ltd","7131871","199.33","R&M - Departmental planned (external)","130207591","21/03/2018","Maintenance Programme","Centralised R&M","R2001"
"Wolverhampton City Council","http://opendatacommunities.org/id/metropolitan-district-council/wolverhampton","713873","Quartzelec Ltd","7131871","6,563.19","R&M - Departmental planned (external)","130207591","21/03/2018","Maintenance Programme","Centralised R&M","R2001"
"Wolverhampton City Council","http://opendatacommunities.org/id/metropolitan-district-council/wolverhampton","713873","Quartzelec Ltd","7131871","594.15","R&M - Departmental planned (external)","130207591","21/03/2018","Maintenance Programme","Centralised R&M","R2001"
"Wolverhampton City Council","http://opendatacommunities.org/id/metropolitan-district-council/wolverhampton","713873","Quartzelec Ltd","7131871","1,253.12","R&M - Departmental planned (external)","130207591","21/03/2018","Maintenance Programme","Centralised R&M","R2001"
"Wolverhampton City Council","http://opendatacommunities.org/id/metropolitan-district-council/wolverhampton","713873","Quartzelec Ltd","7131871","1,607.26","R&M - Departmental planned (external)","130207591","21/03/2018","Maintenance Programme","Centralised R&M","R2001"
"Wolverhampton City Council","http://opendatacommunities.org/id/metropolitan-district-council/wolverhampton","713873","Quartzelec Ltd","7131871","199.33","R&M - Departmental planned (external)","130207591","21/03/2018","Maintenance Programme","Centralised R&M","R2001"
"Wolverhampton City Council","http://opendatacommunities.org/id/metropolitan-district-council/wolverhampton","713873","Quartzelec Ltd","7131871","0.03","R&M - Departmental planned (external)","130207591","21/03/2018","Maintenance Programme","Centralised R&M","R2001"
"Wolverhampton City Council","http://opendatacommunities.org/id/metropolitan-district-council/wolverhampton","713873","Quartzelec Ltd","7131871","199.33","R&M - Departmental planned (external)","130207591","21/03/2018","Maintenance Programme","Centralised R&M","R2001"
"Wolverhampton City Council","http://opendatacommunities.org/id/metropolitan-district-council/wolverhampton","713873","Quartzelec Ltd","7131871","2,376.65","R&M - Departmental planned (external)","130207591","21/03/2018","Maintenance Programme","Centralised R&M","R2001"
"Wolverhampton City Council","http://opendatacommunities.org/id/metropolitan-district-council/wolverhampton","713873","Quartzelec Ltd","7131871","808.60","R&M - Departmental planned (external)","130207591","21/03/2018","Maintenance Programme","Centralised R&M","R2001"
"Wolverhampton City Council","http://opendatacommunities.org/id/metropolitan-district-council/wolverhampton","713873","Quartzelec Ltd","7131871","-16,610.12","R&M - Departmental planned (external)","130207591","21/03/2018","Maintenance Programme","Centralised R&M","R2001"
"Wolverhampton City Council","http://opendatacommunities.org/id/metropolitan-district-council/wolverhampton","713873","Quartzelec Ltd","7131871","233.86","R&M - Departmental planned (external)","130207591","21/03/2018","Maintenance Programme","Centralised R&M","R2001"
"Wolverhampton City Council","http://opendatacommunities.org/id/metropolitan-district-council/wolverhampton","713873","Quartzelec Ltd","7119786","1,517.32","R&M - Departmental planned (external)","130210801","23/03/2018","Maintenance Programme","Centralised R&M","R2001"
"Wolverhampton City Council","http://opendatacommunities.org/id/metropolitan-district-council/wolverhampton","713873","Quartzelec Ltd","7131453","462.80","R&M - Departmental planned (external)","130205937","07/03/2018","Maintenance Programme","Centralised R&M","R2001"
"Wolverhampton City Council","http://opendatacommunities.org/id/metropolitan-district-council/wolverhampton","713873","Quartzelec Ltd","7131717","836.55","R&M - Departmental planned (external)","130206740","14/03/2018","Maintenance Programme","Centralised R&M","R2001"
"Wolverhampton City Council","http://opendatacommunities.org/id/metropolitan-district-council/wolverhampton","713873","Quartzelec Ltd","7119579","381.25","R&M - Departmental planned (external)","130209469","16/03/2018","Maintenance Programme","Centralised R&M","R2001"
"Wolverhampton City Council","http://opendatacommunities.org/id/metropolitan-district-council/wolverhampton","713873","Quartzelec Ltd","7131454","325.00","R&M - Departmental planned (external)","130205938","07/03/2018","Maintenance Programme","Centralised R&M","R2001"
"Wolverhampton City Council","http://opendatacommunities.org/id/metropolitan-district-council/wolverhampton","713873","Quartzelec Ltd","7131937","1,432.09","R&M - Departmental planned (external)","130207151","21/03/2018","Maintenance Programme","Centralised R&M","R2001"
"Wolverhampton City Council","http://opendatacommunities.org/id/metropolitan-district-council/wolverhampton","713873","Quartzelec Ltd","7117210","7,010.34","R&M - Departmental planned (external)","130209694","21/03/2018","Maintenance Programme","Centralised R&M","R2001"
"Wolverhampton City Council","http://opendatacommunities.org/id/metropolitan-district-council/wolverhampton","713873","Quartzelec Ltd","7131939","1,715.79","R&M - Departmental planned (external)","130207152","21/03/2018","Maintenance Programme","Centralised R&M","R2001"
"Wolverhampton City Council","http://opendatacommunities.org/id/metropolitan-district-council/wolverhampton","713873","Quartzelec Ltd","7132119","1,189.70","R&M - Departmental planned (external)","130207592","23/03/2018","Maintenance Programme","Centralised R&M","R2001"
"Wolverhampton City Council","http://opendatacommunities.org/id/metropolitan-district-council/wolverhampton","713873","Quartzelec Ltd","7131710","364.50","R&M - Departmental planned (external)","130206739","14/03/2018","Maintenance Programme","Centralised R&M","R2001"
"Wolverhampton City Council","http://opendatacommunities.org/id/metropolitan-district-council/wolverhampton","713873","Quartzelec Ltd","7131456","1,023.75","R&M - Departmental planned (external)","130205939","07/03/2018","Maintenance Programme","Centralised R&M","R2001"
"Wolverhampton City Council","http://opendatacommunities.org/id/metropolitan-district-council/wolverhampton","713882","Frontier Plastics Ltd","N57006","3,564.50","TPP - Public Health Contracts","130207353","21/03/2018","Contracts","Alcohol and Drug","R5060"
"Wolverhampton City Council","http://opendatacommunities.org/id/metropolitan-district-council/wolverhampton","713882","Frontier Plastics Ltd","N57006","-3,564.50","TPP - Public Health Contracts","130207353","21/03/2018","Contracts","Alcohol and Drug","R5060"
"Wolverhampton City Council","http://opendatacommunities.org/id/metropolitan-district-council/wolverhampton","713882","Frontier Plastics Ltd","N57006","3,564.50","TPP - Public Health Contracts","130207353","21/03/2018","Contracts","Alcohol and Drug","R5060"
"Wolverhampton City Council","http://opendatacommunities.org/id/metropolitan-district-council/wolverhampton","713886","King�s College Hospital","002563 M9 GUM 17-18","134.00","TPP - Public Health Contracts","190441098","26/03/2018","Contracts","Sexual Health","R5060"
"Wolverhampton City Council","http://opendatacommunities.org/id/metropolitan-district-council/wolverhampton","713886","King�s College Hospital","00255199 GUM Nov 17","134.00","TPP - Public Health Contracts","190432114","07/03/2018","Contracts","Sexual Health","R5060"
"Wolverhampton City Council","http://opendatacommunities.org/id/metropolitan-district-council/wolverhampton","713926","Cefndy Healthcare","800696575","334.60","Equipment - Purchase","130207442","21/03/2018","Independent Living Service","Independent Living Service","R4000"
"Wolverhampton City Council","http://opendatacommunities.org/id/metropolitan-district-council/wolverhampton","713942","Severn Trent Water PLC (Connections)","8259397","65,979.77","Construction and Conversion","130208930","14/03/2018","-","GF - Accessing Growth Fund","C1100"
"Wolverhampton City Council","http://opendatacommunities.org/id/metropolitan-district-council/wolverhampton","713951","Northwood Park Primary Academy","SEN Mainstream Top Ups Spring Term 2017/18 - Northwood Park Academy","4,750.62","Grant Payments","190439942","23/03/2018","Schools","High Needs Top Up -Mainstream Schools/Academies","R4700"
"Wolverhampton City Council","http://opendatacommunities.org/id/metropolitan-district-council/wolverhampton","713951","Northwood Park Primary Academy","P16808120180313","650.00","Grant Payments to Individuals","190435204","14/03/2018","Looked After Children","LAC Education Team (LACE)","R6402"
"Wolverhampton City Council","http://opendatacommunities.org/id/metropolitan-district-council/wolverhampton","713951","Northwood Park Primary Academy","P16808120180313","650.00","Grant Payments to Individuals","190435204","14/03/2018","Looked After Children","LAC Education Team (LACE)","R6402"
"Wolverhampton City Council","http://opendatacommunities.org/id/metropolitan-district-council/wolverhampton","713952","Unit 4 Business Software Limited","2000003968","1,375.00","Services - Professional Fees","130210144","21/03/2018","Strategic Finance","Agresso System Support","R4400"
"Wolverhampton City Council","http://opendatacommunities.org/id/metropolitan-district-council/wolverhampton","713952","Unit 4 Business Software Limited","20000004605","19,523.99","Computing - Licences","130208287","07/03/2018","Strategic Finance","Agresso System Support","R4535"
"Wolverhampton City Council","http://opendatacommunities.org/id/metropolitan-district-council/wolverhampton","713994","Mrs Jaswinder Hothi","034","450.00","Accommodation Costs","130206114","09/03/2018","Child Protection","CIN/CP Social Work Unit - Area 5","R4900"
"Wolverhampton City Council","http://opendatacommunities.org/id/metropolitan-district-council/wolverhampton","714006","Everything ID - Biotects Ltd","16771","44.00","Equipment - Purchase","130207332","07/03/2018","Adult Education","Service Wide","R4000"
"Wolverhampton City Council","http://opendatacommunities.org/id/metropolitan-district-council/wolverhampton","714006","Everything ID - Biotects Ltd","16771","120.00","Equipment - Purchase","130207332","07/03/2018","Adult Education","Service Wide","R4000"
"Wolverhampton City Council","http://opendatacommunities.org/id/metropolitan-district-council/wolverhampton","714006","Everything ID - Biotects Ltd","16771","147.96","Equipment - Purchase","130207332","07/03/2018","Adult Education","Service Wide","R4000"
"Wolverhampton City Council","http://opendatacommunities.org/id/metropolitan-district-council/wolverhampton","714015","Lisclare","SINV03078205","148.00","Equipment - Purchase","130207593","14/03/2018","Independent Living Service","Independent Living Service","R4000"
"Wolverhampton City Council","http://opendatacommunities.org/id/metropolitan-district-council/wolverhampton","714074","Becky Lloyd School Improvement","148HEADSTART3","1,000.00","Services - Professional Fees","130210103","23/03/2018","Headstart","Headstart Phase 3","R4400"
"Wolverhampton City Council","http://opendatacommunities.org/id/metropolitan-district-council/wolverhampton","714127","Flavor of paradise Caf�","PH-008","28.00","Catering","130207737","02/03/2018","Healthier Places Service","Healthy Schools Team","R4100"
"Wolverhampton City Council","http://opendatacommunities.org/id/metropolitan-district-council/wolverhampton","714127","Flavor of paradise Caf�","WCC-004","240.00","Equipment - Purchase","130208440","07/03/2018","Learning Disability Provider","City Links","R4000"
"Wolverhampton City Council","http://opendatacommunities.org/id/metropolitan-district-council/wolverhampton","714187","Hortons� Estate Limited","66760","1,500.00","Rent","130208742","14/03/2018","Skills","Connexions Contract","R2200"
"Wolverhampton City Council","http://opendatacommunities.org/id/metropolitan-district-council/wolverhampton","714192","The Franking Machine Company Ltd","18651","239.50","Equipment - R & M","130207901","26/03/2018","ICTS","Document Centre - General","R4003"
"Wolverhampton City Council","http://opendatacommunities.org/id/metropolitan-district-council/wolverhampton","714205","Dolphin Media & Design Ltd","4016","476.00","Equipment - Purchase","130207738","26/03/2018","Leisure Services","Bert Williams Leisure Centre","R4000"
"Wolverhampton City Council","http://opendatacommunities.org/id/metropolitan-district-council/wolverhampton","714205","Dolphin Media & Design Ltd","4016","159.28","Equipment - Purchase","130207738","26/03/2018","Leisure Services","Bert Williams Leisure Centre","R4000"
"Wolverhampton City Council","http://opendatacommunities.org/id/metropolitan-district-council/wolverhampton","714227","Dr Elizabeth Ball","34","158.46","TPP - Public Health Contracts","130208092","26/03/2018","Contracts","Alcohol and Drug","R5060"
"Wolverhampton City Council","http://opendatacommunities.org/id/metropolitan-district-council/wolverhampton","714240","Engage Education Ltd","H-02181","4,460.00","Services - Consultants","130205760","07/03/2018","Headstart","Headstart - Learning Technologies Team","R4404"
"Wolverhampton City Council","http://opendatacommunities.org/id/metropolitan-district-council/wolverhampton","714250","SG LEE & Sons","00013","51.00","Materials","130206581","14/03/2018","Visitor Economy","Northicote Farm","R4007"
"Wolverhampton City Council","http://opendatacommunities.org/id/metropolitan-district-council/wolverhampton","714251","Phils Feeds","01433","52.50","Materials","130206582","14/03/2018","Visitor Economy","Northicote Farm","R4007"
"Wolverhampton City Council","http://opendatacommunities.org/id/metropolitan-district-council/wolverhampton","714251","Phils Feeds","01433","-52.50","Materials","130206582","14/03/2018","Visitor Economy","Northicote Farm","R4007"
"Wolverhampton City Council","http://opendatacommunities.org/id/metropolitan-district-council/wolverhampton","714251","Phils Feeds","01433","52.50","Materials","130206582","14/03/2018","Visitor Economy","Northicote Farm","R4007"
"Wolverhampton City Council","http://opendatacommunities.org/id/metropolitan-district-council/wolverhampton","714276","Speller Metcalfe Malvern Limited","CIN7161","507,926.23","Construction and Conversion","130210105","21/03/2018","-","Future Spaces","C1100"
"Wolverhampton City Council","http://opendatacommunities.org/id/metropolitan-district-council/wolverhampton","714276","Speller Metcalfe Malvern Limited","CIN7130","469,761.31","Construction and Conversion","130206741","02/03/2018","-","South Side","C1100"
"Wolverhampton City Council","http://opendatacommunities.org/id/metropolitan-district-council/wolverhampton","714279","Tusker","SIN366364","24,086.48","Services - Professional Fees","130210150","26/03/2018","Human Resources","Salary Sacrifice Schemes","R4400"
"Wolverhampton City Council","http://opendatacommunities.org/id/metropolitan-district-council/wolverhampton","714279","Tusker","SIN355321","40.00","Services - Professional Fees","130205017","02/03/2018","Human Resources","Salary Sacrifice Schemes","R4400"
"Wolverhampton City Council","http://opendatacommunities.org/id/metropolitan-district-council/wolverhampton","714279","Tusker","SIN355321","-40.00","Services - Professional Fees","130205017","02/03/2018","Human Resources","Salary Sacrifice Schemes","R4400"
"Wolverhampton City Council","http://opendatacommunities.org/id/metropolitan-district-council/wolverhampton","714279","Tusker","SIN355321","30.00","Services - Professional Fees","130205017","02/03/2018","Human Resources","Salary Sacrifice Schemes","R4400"
"Wolverhampton City Council","http://opendatacommunities.org/id/metropolitan-district-council/wolverhampton","714279","Tusker","SIN355321","10.00","Services - Professional Fees","130205017","02/03/2018","Human Resources","Salary Sacrifice Schemes","R4400"
"Wolverhampton City Council","http://opendatacommunities.org/id/metropolitan-district-council/wolverhampton","714279","Tusker","SIN355581","24,086.48","Services - Professional Fees","130210624","23/03/2018","Human Resources","Salary Sacrifice Schemes","R4400"
"Wolverhampton City Council","http://opendatacommunities.org/id/metropolitan-district-council/wolverhampton","714279","Tusker","SIN367284","405.93","Services - Professional Fees","130210106","26/03/2018","Human Resources","Salary Sacrifice Schemes","R4400"
"Wolverhampton City Council","http://opendatacommunities.org/id/metropolitan-district-council/wolverhampton","714279","Tusker","SIN358925","45.00","Services - Professional Fees","130206270","23/03/2018","Human Resources","Salary Sacrifice Schemes","R4400"
"Wolverhampton City Council","http://opendatacommunities.org/id/metropolitan-district-council/wolverhampton","714279","Tusker","SIN367283","140.30","Services - Professional Fees","130208441","26/03/2018","Human Resources","Salary Sacrifice Schemes","R4400"
"Wolverhampton City Council","http://opendatacommunities.org/id/metropolitan-district-council/wolverhampton","714279","Tusker","SIN367283","28.78","Services - Professional Fees","130208441","26/03/2018","Human Resources","Salary Sacrifice Schemes","R4400"
"Wolverhampton City Council","http://opendatacommunities.org/id/metropolitan-district-council/wolverhampton","714279","Tusker","SIN367283","78.58","Services - Professional Fees","130208441","26/03/2018","Human Resources","Salary Sacrifice Schemes","R4400"
"Wolverhampton City Council","http://opendatacommunities.org/id/metropolitan-district-council/wolverhampton","714279","Tusker","SIN367283","387.96","Services - Professional Fees","130208441","26/03/2018","Human Resources","Salary Sacrifice Schemes","R4400"
"Wolverhampton City Council","http://opendatacommunities.org/id/metropolitan-district-council/wolverhampton","714279","Tusker","SIN367283","-387.96","Services - Professional Fees","130208441","26/03/2018","Human Resources","Salary Sacrifice Schemes","R4400"
"Wolverhampton City Council","http://opendatacommunities.org/id/metropolitan-district-council/wolverhampton","714279","Tusker","SIN367283","168.36","Services - Professional Fees","130208441","26/03/2018","Human Resources","Salary Sacrifice Schemes","R4400"
"Wolverhampton City Council","http://opendatacommunities.org/id/metropolitan-district-council/wolverhampton","714279","Tusker","SIN358924","40.00","Services - Professional Fees","130206269","23/03/2018","Human Resources","Salary Sacrifice Schemes","R4400"
"Wolverhampton City Council","http://opendatacommunities.org/id/metropolitan-district-council/wolverhampton","714279","Tusker","SIN358924","-40.00","Services - Professional Fees","130206269","23/03/2018","Human Resources","Salary Sacrifice Schemes","R4400"
"Wolverhampton City Council","http://opendatacommunities.org/id/metropolitan-district-council/wolverhampton","714279","Tusker","SIN358924","30.00","Services - Professional Fees","130206269","23/03/2018","Human Resources","Salary Sacrifice Schemes","R4400"
"Wolverhampton City Council","http://opendatacommunities.org/id/metropolitan-district-council/wolverhampton","714279","Tusker","SIN358924","10.00","Services - Professional Fees","130206269","23/03/2018","Human Resources","Salary Sacrifice Schemes","R4400"
"Wolverhampton City Council","http://opendatacommunities.org/id/metropolitan-district-council/wolverhampton","714313","Midcounties - Finchfield Nursery","NEF Spring 2018 INST 2","40,656.72","TPP - Private Nursery Education Funding","190439901","23/03/2018","Early Years","Early Years Universal Entitlement for 3 and 4 Year Olds","R5035"
"Wolverhampton City Council","http://opendatacommunities.org/id/metropolitan-district-council/wolverhampton","714313","Midcounties - Finchfield Nursery","EYPP Spring 2018","95.40","TPP - Private Nursery Education Funding","190441753","26/03/2018","Early Years","Early Years Pupil Premium","R5035"
"Wolverhampton City Council","http://opendatacommunities.org/id/metropolitan-district-council/wolverhampton","714313","Midcounties - Finchfield Nursery","TFT Spring 2018 Inst 2","4,991.62","TPP - Private Nursery Education Funding","190439893","23/03/2018","Early Years","Early Years Entitlement Funding for Disadvantaged 2 Year Olds","R5035"
"Wolverhampton City Council","http://opendatacommunities.org/id/metropolitan-district-council/wolverhampton","714316","Little Oaks Day Nursery","Enhanced Funding R Hughes Spring 2018","1,000.00","TPP - Private Nursery Education Funding","190439921","23/03/2018","Early Years","Early Years SEN Inclusion Fund","R5035"
"Wolverhampton City Council","http://opendatacommunities.org/id/metropolitan-district-council/wolverhampton","714316","Little Oaks Day Nursery","TFT Spring 2018 Inst 2","13,487.76","TPP - Private Nursery Education Funding","190439893","23/03/2018","Early Years","Early Years Entitlement Funding for Disadvantaged 2 Year Olds","R5035"
"Wolverhampton City Council","http://opendatacommunities.org/id/metropolitan-district-council/wolverhampton","714316","Little Oaks Day Nursery","NEF Spring 2018 INST 2","26,516.58","TPP - Private Nursery Education Funding","190439901","23/03/2018","Early Years","Early Years Universal Entitlement for 3 and 4 Year Olds","R5035"
"Wolverhampton City Council","http://opendatacommunities.org/id/metropolitan-district-council/wolverhampton","714316","Little Oaks Day Nursery","EYPP Spring 2018","1,144.80","TPP - Private Nursery Education Funding","190441753","26/03/2018","Early Years","Early Years Pupil Premium","R5035"
"Wolverhampton City Council","http://opendatacommunities.org/id/metropolitan-district-council/wolverhampton","714316","Little Oaks Day Nursery","Enhanced Funding R Hughes Autumn 2017","1,000.00","TPP - Private Nursery Education Funding","190439914","23/03/2018","Early Years","Early Years SEN Inclusion Fund","R5035"
"Wolverhampton City Council","http://opendatacommunities.org/id/metropolitan-district-council/wolverhampton","715677","Eversheds LLP","91683168","3,059.56","Acquisition of Land and Buildings","130208744","23/03/2018","-","i54 Access and Infrastructure","C1000"
"Wolverhampton City Council","http://opendatacommunities.org/id/metropolitan-district-council/wolverhampton","715677","Eversheds LLP","91683168","15.00","Acquisition of Land and Buildings","130208744","23/03/2018","-","i54 Access and Infrastructure","C1000"
"Wolverhampton City Council","http://opendatacommunities.org/id/metropolitan-district-council/wolverhampton","715688","Sterling Filtration Limited","125368","239.12","Equipment - Purchase","190430125","02/03/2018","Fleet Services","Fleet Management","R4000"
"Wolverhampton City Council","http://opendatacommunities.org/id/metropolitan-district-council/wolverhampton","715778","Coopal Ltd","760","1,572.54","Equipment - Purchase","130210107","23/03/2018","Central Corporate Budgets","Miscellaneous Corporate Costs","R4000"
"Wolverhampton City Council","http://opendatacommunities.org/id/metropolitan-district-council/wolverhampton","715795","Brewood Middle School","P16852020180316","650.00","Grant Payments to Individuals","190437072","21/03/2018","Looked After Children","LAC Education Team (LACE)","R6402"
"Wolverhampton City Council","http://opendatacommunities.org/id/metropolitan-district-council/wolverhampton","715796","Fibbersley Park Academy","P16852020180316","650.00","Grant Payments to Individuals","190437072","21/03/2018","Looked After Children","LAC Education Team (LACE)","R6402"
"Wolverhampton City Council","http://opendatacommunities.org/id/metropolitan-district-council/wolverhampton","715796","Fibbersley Park Academy","P16852020180316","650.00","Grant Payments to Individuals","190437072","21/03/2018","Looked After Children","LAC Education Team (LACE)","R6402"
"Wolverhampton City Council","http://opendatacommunities.org/id/metropolitan-district-council/wolverhampton","715807","Etchiing Hill C of E Primary School","P16852020180316","650.00","Grant Payments to Individuals","190437072","21/03/2018","Looked After Children","LAC Education Team (LACE)","R6402"
"Wolverhampton City Council","http://opendatacommunities.org/id/metropolitan-district-council/wolverhampton","715807","Etchiing Hill C of E Primary School","P16852020180316","650.00","Grant Payments to Individuals","190437072","21/03/2018","Looked After Children","LAC Education Team (LACE)","R6402"
"Wolverhampton City Council","http://opendatacommunities.org/id/metropolitan-district-council/wolverhampton","715822","Arcadis LLP","14026106","44,798.48","Services - Consultants","130208932","26/03/2018","City Development","Canalside Regeneration Strategy & Delivery","R4404"
"Wolverhampton City Council","http://opendatacommunities.org/id/metropolitan-district-council/wolverhampton","715822","Arcadis LLP","14026096","4,000.00","Services - Professional Fees","130208931","26/03/2018","Corporate Asset Management","Assets Service Transformation Programme","R4400"
"Wolverhampton City Council","http://opendatacommunities.org/id/metropolitan-district-council/wolverhampton","715822","Arcadis LLP","14026150","37,915.21","Services - Consultants","130208933","26/03/2018","City Development","Canalside Regeneration Strategy & Delivery","R4404"
"Wolverhampton City Council","http://opendatacommunities.org/id/metropolitan-district-council/wolverhampton","715822","Arcadis LLP","14026104","9,750.00","Services - Professional Fees","130208745","26/03/2018","Corporate Asset Management","Assets Service Transformation Programme","R4400"
"Wolverhampton City Council","http://opendatacommunities.org/id/metropolitan-district-council/wolverhampton","715909","Family Action","22122","29,700.00","TPP - Placement Foster Care Inhouse","130204500","23/03/2018","Looked After Children","Head of Service - LAC","R5601"
"Wolverhampton City Council","http://opendatacommunities.org/id/metropolitan-district-council/wolverhampton","716001","Sigma Surveying Services Limited","00001260/MAS","14,000.00","Services - Consultants","130208442","26/03/2018","Commercial Services","Corporate Procurement Unit","R4404"
"Wolverhampton City Council","http://opendatacommunities.org/id/metropolitan-district-council/wolverhampton","716010","Kingdom Security Limited","0000485583","25,860.00","Services - Professional Fees","130209329","26/03/2018","Public Protection","Environmental Crime","R4400"
"Wolverhampton City Council","http://opendatacommunities.org/id/metropolitan-district-council/wolverhampton","716061","Victoria Bithell","0125/2017-18","1,770.00","Services - Professional Fees","130207739","23/03/2018","Visitor Economy","Venice Diaspora - ACE NPO WAG","R4400"
"Wolverhampton City Council","http://opendatacommunities.org/id/metropolitan-district-council/wolverhampton","716106","Active Assistance","13037220180322","1,232.91","TPP - Home Care","190440681","23/03/2018","Physical Disabilities Care Purchasing","PD Care Purchasing (Spot Placements)","R5420"
"Wolverhampton City Council","http://opendatacommunities.org/id/metropolitan-district-council/wolverhampton","716106","Active Assistance","13037220180322","136.99","TPP - Nursing Care - Long Term","190440681","23/03/2018","Physical Disabilities Care Purchasing","PD Care Purchasing (Spot Placements)","R5410"
"Wolverhampton City Council","http://opendatacommunities.org/id/metropolitan-district-council/wolverhampton","716106","Active Assistance","13005720180308","1,232.91","TPP - Home Care","190433815","09/03/2018","Physical Disabilities Care Purchasing","PD Care Purchasing (Spot Placements)","R5420"
"Wolverhampton City Council","http://opendatacommunities.org/id/metropolitan-district-council/wolverhampton","716106","Active Assistance","13005720180308","136.99","TPP - Nursing Care - Long Term","190433815","09/03/2018","Physical Disabilities Care Purchasing","PD Care Purchasing (Spot Placements)","R5410"
"Wolverhampton City Council","http://opendatacommunities.org/id/metropolitan-district-council/wolverhampton","716106","Active Assistance","13024120180313","1,232.91","TPP - Home Care","190435152","14/03/2018","Physical Disabilities Care Purchasing","PD Care Purchasing (Spot Placements)","R5420"
"Wolverhampton City Council","http://opendatacommunities.org/id/metropolitan-district-council/wolverhampton","716106","Active Assistance","13024120180313","136.99","TPP - Nursing Care - Long Term","190435152","14/03/2018","Physical Disabilities Care Purchasing","PD Care Purchasing (Spot Placements)","R5410"
"Wolverhampton City Council","http://opendatacommunities.org/id/metropolitan-district-council/wolverhampton","716118","The Ashmore Play Hub Ltd","EYPP Spring 2018","286.20","TPP - Private Nursery Education Funding","190441753","26/03/2018","Early Years","Early Years Pupil Premium","R5035"
"Wolverhampton City Council","http://opendatacommunities.org/id/metropolitan-district-council/wolverhampton","716118","The Ashmore Play Hub Ltd","NEF Spring 2018 INST 2","5,003.72","TPP - Private Nursery Education Funding","190439901","23/03/2018","Early Years","Early Years Universal Entitlement for 3 and 4 Year Olds","R5035"
"Wolverhampton City Council","http://opendatacommunities.org/id/metropolitan-district-council/wolverhampton","716118","The Ashmore Play Hub Ltd","TFT Spring 2018 Inst 2","9,227.64","TPP - Private Nursery Education Funding","190439893","23/03/2018","Early Years","Early Years Entitlement Funding for Disadvantaged 2 Year Olds","R5035"
"Wolverhampton City Council","http://opendatacommunities.org/id/metropolitan-district-council/wolverhampton","716125","Autostart Midlands Limited","080373","180.00","Equipment - Purchase","190432450","07/03/2018","Fleet Services","Fleet Management","R4000"
"Wolverhampton City Council","http://opendatacommunities.org/id/metropolitan-district-council/wolverhampton","716177","Bolinda Uk Ltd","26973","546.27","Books","130207335","21/03/2018","Strategic Organisation Development","Global Budgets","R4309"
"Wolverhampton City Council","http://opendatacommunities.org/id/metropolitan-district-council/wolverhampton","716177","Bolinda Uk Ltd","26965","110.35","Books","130207334","21/03/2018","Strategic Organisation Development","Global Budgets","R4309"
"Wolverhampton City Council","http://opendatacommunities.org/id/metropolitan-district-council/wolverhampton","716184","Dr Connie Wan","WAGJAN2018","175.00","Services - Professional Fees","130205021","02/03/2018","Visitor Economy","Education And Access","R4400"
"Wolverhampton City Council","http://opendatacommunities.org/id/metropolitan-district-council/wolverhampton","716209","Merchandise Ltd","88458","185.00","Marketing \ Non-staff advertising","130208934","16/03/2018","School Planning & Resources","Technical Support","R4317"
"Wolverhampton City Council","http://opendatacommunities.org/id/metropolitan-district-council/wolverhampton","716213","Noise.Co.UK. Ltd.","12023","3,600.00","Services - Professional Fees","130208093","26/03/2018","Housing","Wholly Owned Company - Operations","R4400"
"Wolverhampton City Council","http://opendatacommunities.org/id/metropolitan-district-council/wolverhampton","716224","Homers Travel","322","1,519.28","Client Transport","130210366","21/03/2018","School Planning & Resources","Special - Transport","R3042"
"Wolverhampton City Council","http://opendatacommunities.org/id/metropolitan-district-council/wolverhampton","716224","Homers Travel","321","1,350.00","Client Transport","130208264","07/03/2018","School Planning & Resources","Special - Transport","R3042"
"Wolverhampton City Council","http://opendatacommunities.org/id/metropolitan-district-council/wolverhampton","716246","One 4 You Services Ltd","6731","2,005.80","Client Transport","130208588","23/03/2018","School Planning & Resources","Special - Transport","R3042"
"Wolverhampton City Council","http://opendatacommunities.org/id/metropolitan-district-council/wolverhampton","716246","One 4 You Services Ltd","6730","980.00","Client Transport","130208587","23/03/2018","School Planning & Resources","Special - Transport","R3042"
"Wolverhampton City Council","http://opendatacommunities.org/id/metropolitan-district-council/wolverhampton","716246","One 4 You Services Ltd","6729","930.00","Client Transport","130208586","23/03/2018","School Planning & Resources","Special - Transport","R3042"
"Wolverhampton City Council","http://opendatacommunities.org/id/metropolitan-district-council/wolverhampton","716319","Patrick J J Rollinson","PJR/59","253.00","R&M - Departmental planned (external)","130207902","26/03/2018","Headstart","Headstart Hubs","R2001"
"Wolverhampton City Council","http://opendatacommunities.org/id/metropolitan-district-council/wolverhampton","716362","LHi Group Ltd/Lawrence Harvey","114438","8,312.50","Agency Staff","130205178","02/03/2018","Strategic Finance","Agresso System Support","R1100"
"Wolverhampton City Council","http://opendatacommunities.org/id/metropolitan-district-council/wolverhampton","716368","J P Landscapes & Construction Ltd","2446","3,940.00","Construction and Conversion","130209331","16/03/2018","-","GF - Blue Network","C1100"
"Wolverhampton City Council","http://opendatacommunities.org/id/metropolitan-district-council/wolverhampton","716368","J P Landscapes & Construction Ltd","2488","930.00","Construction and Conversion","130210810","23/03/2018","-","GF - Disposals Programme (Non-Strategic)","C1100"
"Wolverhampton City Council","http://opendatacommunities.org/id/metropolitan-district-council/wolverhampton","716368","J P Landscapes & Construction Ltd","2447","5,600.00","Construction and Conversion","130210809","23/03/2018","-","GF - Blue Network","C1100"
"Wolverhampton City Council","http://opendatacommunities.org/id/metropolitan-district-council/wolverhampton","716368","J P Landscapes & Construction Ltd","2444","1,636.94","R&M - Departmental planned (external)","130207443","07/03/2018","School Planning & Resources","Other Support Services","R2001"
"Wolverhampton City Council","http://opendatacommunities.org/id/metropolitan-district-council/wolverhampton","716369","Armstrong Bell Ltd","0025280","198.87","Comms - Telephone Call charges","130207033","09/03/2018","Skills","Connexions Contract","R4505"
"Wolverhampton City Council","http://opendatacommunities.org/id/metropolitan-district-council/wolverhampton","716384","Hill Shorter Limited","21344","692.00","Services - Professional Fees","130207740","21/03/2018","Visitor Economy","Venice Diaspora - ACE NPO WAG","R4400"
"Wolverhampton City Council","http://opendatacommunities.org/id/metropolitan-district-council/wolverhampton","716392","Virgin Media Ltd","039003802/001/0218","6.40","Comms - Telephone Rental","130206870","07/03/2018","Catering","Primary Schools Catering","R4504"
"Wolverhampton City Council","http://opendatacommunities.org/id/metropolitan-district-council/wolverhampton","716528","Daisy Bogg Consultancy Ltd","761","750.00","Training Expenses","130208094","26/03/2018","Human Resources","Workforce Development","R1650"
"Wolverhampton City Council","http://opendatacommunities.org/id/metropolitan-district-council/wolverhampton","716528","Daisy Bogg Consultancy Ltd","761","80.00","Training Expenses","130208094","26/03/2018","Human Resources","Workforce Development","R1650"
"Wolverhampton City Council","http://opendatacommunities.org/id/metropolitan-district-council/wolverhampton","716547","Teeny Tots Playgroup Ltd","EYPP Spring 2018","477.00","TPP - Private Nursery Education Funding","190441753","26/03/2018","Early Years","Early Years Pupil Premium","R5035"
"Wolverhampton City Council","http://opendatacommunities.org/id/metropolitan-district-council/wolverhampton","716547","Teeny Tots Playgroup Ltd","NEF Spring 2018 INST 2","1,836.00","TPP - Private Nursery Education Funding","190439901","23/03/2018","Early Years","Early Years Universal Entitlement for 3 and 4 Year Olds","R5035"
"Wolverhampton City Council","http://opendatacommunities.org/id/metropolitan-district-council/wolverhampton","716547","Teeny Tots Playgroup Ltd","TFT Spring 2018 Inst 2","5,863.56","TPP - Private Nursery Education Funding","190439893","23/03/2018","Early Years","Early Years Entitlement Funding for Disadvantaged 2 Year Olds","R5035"
"Wolverhampton City Council","http://opendatacommunities.org/id/metropolitan-district-council/wolverhampton","716571","E-Recruiter","1193","3,870.00","Agency Staff","130207903","26/03/2018","Strategic Finance","Agresso System Support","R1100"
"Wolverhampton City Council","http://opendatacommunities.org/id/metropolitan-district-council/wolverhampton","716571","E-Recruiter","1147","3,870.00","Agency Staff","130205761","07/03/2018","Strategic Finance","Agresso System Support","R1100"
"Wolverhampton City Council","http://opendatacommunities.org/id/metropolitan-district-council/wolverhampton","716575","Karen Broomhall","NEF Spring 2018 INST 2","306.00","TPP - Private Nursery Education Funding","190439901","23/03/2018","Early Years","Early Years Universal Entitlement for 3 and 4 Year Olds","R5035"
"Wolverhampton City Council","http://opendatacommunities.org/id/metropolitan-district-council/wolverhampton","716584","Atkins Limited","18008614","4,740.00","External Professional Fees","130208265","26/03/2018","-","GF - LGF Feasibility","C6002"
"Wolverhampton City Council","http://opendatacommunities.org/id/metropolitan-district-council/wolverhampton","716584","Atkins Limited","18005398","10,836.33","Services - Professional Fees","130207034","16/03/2018","Commercial Services","Corporate Procurement Unit","R4400"
"Wolverhampton City Council","http://opendatacommunities.org/id/metropolitan-district-council/wolverhampton","716584","Atkins Limited","18001246","43,654.62","Construction and Conversion","130203070","21/03/2018","-","Primary Expansion Programme","C1100"
"Wolverhampton City Council","http://opendatacommunities.org/id/metropolitan-district-council/wolverhampton","716584","Atkins Limited","18005732","2,000.00","Services - Professional Fees","130207035","23/03/2018","Waste and Recycling Service","Waste Man.Partnership-General","R4400"
"Wolverhampton City Council","http://opendatacommunities.org/id/metropolitan-district-council/wolverhampton","716584","Atkins Limited","18001239","44,573.72","Services - Professional Fees","130203069","23/03/2018","School Planning & Resources","Primary Expansion Feasibility Work","R4400"
"Wolverhampton City Council","http://opendatacommunities.org/id/metropolitan-district-council/wolverhampton","716588","Magna large Print Books","I104561","302.20","Books","130206277","07/03/2018","Strategic Organisation Development","Global Budgets","R4309"
"Wolverhampton City Council","http://opendatacommunities.org/id/metropolitan-district-council/wolverhampton","716589","Elston Hall Multi-Academy Trust","EYPP Spring 2018","381.60","TPP - Private Nursery Education Funding","190441753","26/03/2018","Early Years","Early Years Pupil Premium","R5035"
"Wolverhampton City Council","http://opendatacommunities.org/id/metropolitan-district-council/wolverhampton","716589","Elston Hall Multi-Academy Trust","SEN Mainstream Top Ups Spring Term 2017/18 - Elston Hall Academy","2,880.69","Grant Payments","190439932","23/03/2018","Schools","High Needs Top Up -Mainstream Schools/Academies","R4700"
"Wolverhampton City Council","http://opendatacommunities.org/id/metropolitan-district-council/wolverhampton","716589","Elston Hall Multi-Academy Trust","P16808120180313","650.00","Grant Payments to Individuals","190435204","14/03/2018","Looked After Children","LAC Education Team (LACE)","R6402"
"Wolverhampton City Council","http://opendatacommunities.org/id/metropolitan-district-council/wolverhampton","716589","Elston Hall Multi-Academy Trust","P16808120180313","650.00","Grant Payments to Individuals","190435204","14/03/2018","Looked After Children","LAC Education Team (LACE)","R6402"
"Wolverhampton City Council","http://opendatacommunities.org/id/metropolitan-district-council/wolverhampton","716589","Elston Hall Multi-Academy Trust","P16808120180313","650.00","Grant Payments to Individuals","190435204","14/03/2018","Looked After Children","LAC Education Team (LACE)","R6402"
"Wolverhampton City Council","http://opendatacommunities.org/id/metropolitan-district-council/wolverhampton","716589","Elston Hall Multi-Academy Trust","P16808120180313","650.00","Grant Payments to Individuals","190435204","14/03/2018","Looked After Children","LAC Education Team (LACE)","R6402"
"Wolverhampton City Council","http://opendatacommunities.org/id/metropolitan-district-council/wolverhampton","716589","Elston Hall Multi-Academy Trust","P16808120180313","650.00","Grant Payments to Individuals","190435204","14/03/2018","Looked After Children","LAC Education Team (LACE)","R6402"
"Wolverhampton City Council","http://opendatacommunities.org/id/metropolitan-district-council/wolverhampton","716589","Elston Hall Multi-Academy Trust","P16808120180313","650.00","Grant Payments to Individuals","190435204","14/03/2018","Looked After Children","LAC Education Team (LACE)","R6402"
"Wolverhampton City Council","http://opendatacommunities.org/id/metropolitan-district-council/wolverhampton","716589","Elston Hall Multi-Academy Trust","P16808120180313","650.00","Grant Payments to Individuals","190435204","14/03/2018","Looked After Children","LAC Education Team (LACE)","R6402"
"Wolverhampton City Council","http://opendatacommunities.org/id/metropolitan-district-council/wolverhampton","716589","Elston Hall Multi-Academy Trust","P16808120180313","650.00","Grant Payments to Individuals","190435204","14/03/2018","Looked After Children","LAC Education Team (LACE)","R6402"
"Wolverhampton City Council","http://opendatacommunities.org/id/metropolitan-district-council/wolverhampton","716589","Elston Hall Multi-Academy Trust","P16808120180313","650.00","Grant Payments to Individuals","190435204","14/03/2018","Looked After Children","LAC Education Team (LACE)","R6402"
"Wolverhampton City Council","http://opendatacommunities.org/id/metropolitan-district-council/wolverhampton","716589","Elston Hall Multi-Academy Trust","P16808120180313","650.00","Grant Payments to Individuals","190435204","14/03/2018","Looked After Children","LAC Education Team (LACE)","R6402"
"Wolverhampton City Council","http://opendatacommunities.org/id/metropolitan-district-council/wolverhampton","716589","Elston Hall Multi-Academy Trust","P16808120180313","100.00","Grant Payments to Individuals","190435204","14/03/2018","Looked After Children","LAC Education Team (LACE)","R6402"
"Wolverhampton City Council","http://opendatacommunities.org/id/metropolitan-district-council/wolverhampton","716589","Elston Hall Multi-Academy Trust","T42 Spring 18 Inst 1&2 Rising 3�s","707.40","TPP - Private Nursery Education Funding","190439911","23/03/2018","Early Years","Early Years Entitlement Funding for Disadvantaged 2 Year Olds","R5035"
"Wolverhampton City Council","http://opendatacommunities.org/id/metropolitan-district-council/wolverhampton","716594","Burke Bros Recovery","G29251","70.00","Services - Professional Fees","190440600","23/03/2018","Fleet Services","Fleet Management","R4400"
"Wolverhampton City Council","http://opendatacommunities.org/id/metropolitan-district-council/wolverhampton","716594","Burke Bros Recovery","G28763","70.00","Services - Professional Fees","190440599","23/03/2018","Fleet Services","Fleet Management","R4400"
"Wolverhampton City Council","http://opendatacommunities.org/id/metropolitan-district-council/wolverhampton","716594","Burke Bros Recovery","G29744","70.00","Services - Professional Fees","190440603","23/03/2018","Fleet Services","Fleet Management","R4400"
"Wolverhampton City Council","http://opendatacommunities.org/id/metropolitan-district-council/wolverhampton","716594","Burke Bros Recovery","G28443","70.00","Services - Professional Fees","190440597","23/03/2018","Fleet Services","Fleet Management","R4400"
"Wolverhampton City Council","http://opendatacommunities.org/id/metropolitan-district-council/wolverhampton","716594","Burke Bros Recovery","G29380","70.00","Services - Professional Fees","190440601","23/03/2018","Fleet Services","Fleet Management","R4400"
"Wolverhampton City Council","http://opendatacommunities.org/id/metropolitan-district-council/wolverhampton","716594","Burke Bros Recovery","G28655","70.00","Services - Professional Fees","190440598","23/03/2018","Fleet Services","Fleet Management","R4400"
"Wolverhampton City Council","http://opendatacommunities.org/id/metropolitan-district-council/wolverhampton","716594","Burke Bros Recovery","G29473","70.00","Services - Professional Fees","190440602","23/03/2018","Fleet Services","Fleet Management","R4400"
"Wolverhampton City Council","http://opendatacommunities.org/id/metropolitan-district-council/wolverhampton","716663","Terry Brayshaw","038","182.00","Services - Professional Fees","130210110","21/03/2018","Standards and Vulnerable Pupils","Music Support Team","R4400"
"Wolverhampton City Council","http://opendatacommunities.org/id/metropolitan-district-council/wolverhampton","716663","Terry Brayshaw","036","330.00","Services - Professional Fees","130210369","21/03/2018","Standards and Vulnerable Pupils","Music Support Team","R4400"
"Wolverhampton City Council","http://opendatacommunities.org/id/metropolitan-district-council/wolverhampton","716663","Terry Brayshaw","037","445.00","Services - Professional Fees","130210109","21/03/2018","Standards and Vulnerable Pupils","Music Support Team","R4400"
"Wolverhampton City Council","http://opendatacommunities.org/id/metropolitan-district-council/wolverhampton","716721","Man and Machine Limited","SI-003776","2,103.30","Computing - Purchase of Software","130208096","07/03/2018","Capital Programme","Capital Programme Team","R4531"
"Wolverhampton City Council","http://opendatacommunities.org/id/metropolitan-district-council/wolverhampton","716721","Man and Machine Limited","SI-003776","13,722.75","Computing - Purchase of Software","130208096","07/03/2018","Capital Programme","Capital Programme Team","R4531"
"Wolverhampton City Council","http://opendatacommunities.org/id/metropolitan-district-council/wolverhampton","716721","Man and Machine Limited","SI-003776","2,037.50","Computing - Purchase of Software","130208096","07/03/2018","Capital Programme","Capital Programme Team","R4531"
"Wolverhampton City Council","http://opendatacommunities.org/id/metropolitan-district-council/wolverhampton","716753","Barr Beacon School","P16852020180316","650.00","Grant Payments to Individuals","190437072","21/03/2018","Looked After Children","LAC Education Team (LACE)","R6402"
"Wolverhampton City Council","http://opendatacommunities.org/id/metropolitan-district-council/wolverhampton","716754","Harborne Primary School","P16852020180316","650.00","Grant Payments to Individuals","190437072","21/03/2018","Looked After Children","LAC Education Team (LACE)","R6402"
"Wolverhampton City Council","http://opendatacommunities.org/id/metropolitan-district-council/wolverhampton","716754","Harborne Primary School","P16852020180316","650.00","Grant Payments to Individuals","190437072","21/03/2018","Looked After Children","LAC Education Team (LACE)","R6402"
"Wolverhampton City Council","http://opendatacommunities.org/id/metropolitan-district-council/wolverhampton","716754","Harborne Primary School","P16852020180316","650.00","Grant Payments to Individuals","190437072","21/03/2018","Looked After Children","LAC Education Team (LACE)","R6402"
"Wolverhampton City Council","http://opendatacommunities.org/id/metropolitan-district-council/wolverhampton","716757","The Sallygate School","P16852020180316","650.00","Grant Payments to Individuals","190437072","21/03/2018","Looked After Children","LAC Education Team (LACE)","R6402"
"Wolverhampton City Council","http://opendatacommunities.org/id/metropolitan-district-council/wolverhampton","716759","St Angela�s Ursuline School","P16852020180316","650.00","Grant Payments to Individuals","190437072","21/03/2018","Looked After Children","LAC Education Team (LACE)","R6402"
"Wolverhampton City Council","http://opendatacommunities.org/id/metropolitan-district-council/wolverhampton","716759","St Angela�s Ursuline School","P16852020180316","650.00","Grant Payments to Individuals","190437072","21/03/2018","Looked After Children","LAC Education Team (LACE)","R6402"
"Wolverhampton City Council","http://opendatacommunities.org/id/metropolitan-district-council/wolverhampton","716767","KINGSTON - Northern House Academy","Northern House PRU 50% Spring Term Final","40,517.00","Grant Payments","190439969","23/03/2018","Schools","Special Schools Top Up Contingency","R4700"
"Wolverhampton City Council","http://opendatacommunities.org/id/metropolitan-district-council/wolverhampton","716767","KINGSTON - Northern House Academy","NHAT_0453","6,669.13","TPP - Alternative Provision of Education","130209661","16/03/2018","Specialist Support","Alternative Provision","R5037"
